{"text_format":"1","workbook":"xlsx","n_sheets":6,"sheets":["Düsen_Hersteller","Tabelle1","Tabelle2","14","Übersicht","Düsen"],"not_rendered":{"charts":0,"images":3,"macros":1,"external_links":2,"defined_names":24,"comments":2,"pivot_tables":0},"unopened":[],"bounds":{"document_bytes":16777216,"sheet_cells":100000,"rows_first":2000,"rows_last":500,"rows_between":2000,"halvings":0,"cell_chars":16384,"cell_head_chars":4096},"cells_cut":0,"cells_raw":0,"read":"whole","date_system":"1900"}

{"sheet":"Düsen_Hersteller","index":0,"n_rows":141,"n_cols":14,"rows_kept":141,"cut":false,"hidden":false,"merged":[]}
[null,null,"Feldbau",null,null,"Feldbau",null,null,"Obstbau",null,null,"Obstbau"]
[null,1,"keine Düse",null,1,"keine Spritze",null,1,"keine Düse",null,1,"kein Sprühgerät"]
[null,2,"1/4 TTJ 06",null,2,"AGCO",null,2,"AD 90-02 C",null,2,"Brühwiler Maschinen AG",null,"SUET"]
[null,3,"AI 110 025",null,3,"Agrifac",null,3,"AD 90-03 C",null,3,"Douven",null,"Pulsfog"]
[null,4,"AI 110 03",null,4,"Agrio",null,4,"AD 90-04 C",null,4,"Eigenbau",null,"Niklas"]
[null,5,"AI 110 04",null,5,"Amazone",null,5,"AirMix OC 80-025",null,5,"Favaro",null,"Swingtec"]
[null,6,"AI 110 05",null,6,"CHD",null,6,"AirMix OC 80-03",null,6,"Gerl Landtechnik",null,"IGEBA"]
[null,7,"AIC 110 025",null,7,"Dammann",null,7,"AirMix OC 80-04",null,7,"Hardi",null,"GLORIA"]
[null,8,"AIC 110 03",null,8,"Danfoil",null,8,"AirMix OC 80-05",null,8,"Hermeler Maschinenbau"]
[null,9,"AIC 110 04",null,9,"Douven",null,9,"AITX A/B 80-015",null,9,"Holder"]
[null,10,"AIC 110 05",null,10,"Dubex",null,10,"AITX A/B 80-02",null,10,"Jacoby"]
[null,11,"AirJet 35",null,11,"Eigenbau",null,11,"AITX A/B 80-025",null,11,"John Deere"]
[null,12,"AirJet 42",null,12,"Grimme",null,12,"AITX A/B 80-03",null,12,"Krieger"]
[null,13,"AirJet 52",null,13,"Hardi",null,13,"AIUB 85 025",null,13,"KWH"]
[null,14,"AirMix 110 03",null,14,"Hermeler Maschinenbau",null,14,"AIUB 85 03",null,14,"Lederer"]
[null,15,"AirMix 110 04",null,15,"Holder",null,15,"ATR blau",null,15,"LIPCO"]
[null,16,"AirMix 110 05",null,16,"Horsch Leeb",null,16,"ATR braun",null,16,"Lochmann"]
[null,17,"AirMix NoDrift 110 025",null,17,"Inuma",null,17,"ATR gelb",null,17,"Mitterer"]
[null,18,"AirMix NoDrift 110 03",null,18,"Jacoby",null,18,"ATR grün",null,18,"Munckhof"]
[null,19,"AirMix NoDrift 110 04",null,19,"John Deere",null,19,"ATR lila",null,19,"N.V. B.A.B. Bamps"]
[null,20,"AITTJ 60 - 110 03",null,20,"Krukowiak",null,20,"ATR orange",null,20,"Obermaier"]
[null,21,"AITTJ 60 - 110 04",null,21,"Kverneland Rau",null,21,"ATR rot",null,21,"SAINT GOBAIN SOLCERA"]
[null,22,"AITTJ 60 03",null,22,"Lemken",null,22,"AVI 80-01",null,22,"Sexauer"]
[null,23,"AITTJ 60 04",null,23,"Munckhof",null,23,"AVI 80-015",null,23,"Steiner"]
[null,24,"AIXR 110 025",null,24,"Rau",null,24,"AVI 80-02",null,24,"Wanner"]
[null,25,"AIXR 110 03",null,25,"Rotowiper",null,25,"AVI 80-03",null,25,"Weber"]
[null,26,"AIXR 110 04",null,26,"RTS",null,26,"CVI 80-01",null,26,"Wetzl"]
[null,27,"AIXR 110 05",null,27,"SAINT GOBAIN SOLCERA",null,27,"CVI 80-015",null,27,"Zupan"]
[null,28,"AVI 03",null,28,"Schmotzer",null,28,"CVI 80-02",null,28,"ZUWA-Zumpe"]
[null,29,"AVI 04",null,29,"Viby",null,29,"DG 80 015",null,29]
[null,30,"AVI 110-025",null,30,"Vogel Noot",null,30,"DG 80 02",null,30]
[null,31,"AVI 110-03",null,null,null,null,31,"DG 80 03"]
[null,32,"AVI 110-04",null,null,null,null,32,"DG 80 04"]
[null,33,"AVI Twin 110 04",null,null,null,null,33,"DG 80 05"]
[null,34,"CVI Twin 110 02",null,null,null,null,34,"ID 90-015 C"]
[null,35,"CVI Twin 110 025",null,null,null,null,35,"ID 90-025 C"]
[null,36,"CVI Twin 110 03",null,null,null,null,36,"ID 90-03 C"]
[null,37,"CVI Twin 110 04",null,null,null,null,37,"IDK 90-0067 C"]
[null,38,"CVI Twin 110 05",null,null,null,null,38,"IDK 90-01 C"]
[null,39,"Guardian Air GA110-02",null,null,null,null,39,"IDK 90-015 C"]
[null,40,"Guardian Air GA110-025",null,null,null,null,40,"IDK 90-02 C"]
[null,41,"Guardian Air GA110-03",null,null,null,null,41,"IS 80-03"]
[null,42,"Guardian Air GA110-035",null,null,null,null,42,"TD 80-02"]
[null,43,"Guardian Air GA110-04",null,null,null,null,43,"TR 80-015 C"]
[null,44,"Guardian Air GA110-05",null,null,null,null,44,"TR 80-02 C"]
[null,45,"Guardian Air GA110-08",null,null,null,null,45,"TR 80-03 C"]
[null,46,"Guardian Air Twin 025",null,null,null,null,46,"TVI 80-0050"]
[null,47,"Guardian Air Twin 03",null,null,null,null,47,"TVI 80-015"]
[null,48,"Guardian Air Twin 04",null,null,null,null,48,"TVI 80-03"]
[null,49,"Guardian Air Twin 05",null,null,null,null,49,"TXA/TXB 80 0067"]
[null,50,"Guardian Air Twin 06",null,null,null,null,50,"TXA/TXB 80 01"]
[null,51,"Guardian Air Twin 08",null,null,null,null,51,"TXA/TXB 80 015"]
[null,52,"HiSpeed 02",null,null,null,null,52,"TXA/TXB 80 02"]
[null,53,"HiSpeed 025",null,null,null,null,53,"TXA/TXB 80 03"]
[null,54,"HiSpeed 03",null,null,null,null,54,"TXA/TXB 80 04"]
[null,55,"HiSpeed 04",null,null,null,null,55]
[null,56,"HiSpeed 05",null,null,null,null,56]
[null,57,"ID 120 015",null,null,null,null,57]
[null,58,"ID 120 02",null,null,null,null,58]
[null,59,"ID 120 025",null,null,null,null,59]
[null,60,"ID 120 03",null,null,null,null,60]
[null,61,"ID 120 04",null,null,null,null,61]
[null,62,"ID 120 05",null,null,null,null,62]
[null,63,"ID 90-03 C",null,null,null,null,63]
[null,64,"ID-120-025",null,null,null,null,64]
[null,65,"ID-120-03",null,null,null,null,65]
[null,66,"ID-120-04",null,null,null,null,66]
[null,67,"ID-120-05",null,null,null,null,67]
[null,68,"IDK 120 025",null,null,null,null,68]
[null,69,"IDK 120 03",null,null,null,null,69]
[null,70,"IDK 120 04",null,null,null,null,70]
[null,71,"IDK 120 05"]
[null,72,"IDK 120 06"]
[null,73,"IDK N 120 03"]
[null,74,"IDK N 120 04"]
[null,75,"IDK T 120 02"]
[null,76,"IDK T 120 025"]
[null,77,"IDK T 120 03"]
[null,78,"IDK T 120 04"]
[null,79,"IDK T 120 05"]
[null,80,"IDK T 120 06"]
[null,81,"IDN 120 025"]
[null,82,"IDN 120 03"]
[null,83,"LD 025F110"]
[null,84,"LD 04F110"]
[null,85,"LD 05F110"]
[null,86,"LD 06F110"]
[null,87,"Lechler Pre 130 05"]
[null,88,"Minidrift Duo 03"]
[null,89,"Minidrift Duo 04"]
[null,90,"Minidrift Duo 05"]
[null,91,"Minidrift MD 02"]
[null,92,"Minidrift MD 025"]
[null,93,"Minidrift MD 03"]
[null,94,"Minidrift MD 04"]
[null,95,"Minidrift MD 05"]
[null,96,"S Injet 03"]
[null,97,"S Injet 04"]
[null,98,"S Injet 05"]
[null,99,"Syngenta 130 05"]
[null,100,"TTI 110 02"]
[null,101,"TTI 110 025"]
[null,102,"TTI 110 03"]
[null,103,"TTI 110 04"]
[null,104,"TTI 110 05"]
[null,105,"TTI 110 06"]
[null,106,"TTJ 60 - 110 03"]
[null,107,"TTJ 60 - 110 04"]
[null,108,"TURBO Teejet 110 02"]
[null,109,"TURBO Teejet 110 03"]
[null,110,"TURBO Teejet 110 04"]
[null,111,"TURBO Teejet 110 05"]
[null,112,"TurboDrop 04"]
[null,113,"Twin Fluid TK-10/35"]
[null,114,"Twin Fluid TK-10/42"]
[null,115,"VP 110-03"]
[null,116,"VP 110-04"]
[null,117,"VP 110-05"]
[null,118,"XR 110 03"]
[null,119,"XR 110 04"]
[null,120,"XR 110 05"]
[null,121,"XR 110 06"]
[null,122,"XRC 110 025"]
[null,123,"DT 0,5"]
[null,124,"DT 0,75"]
[null,125,"DT 1,0"]
[null,126,"DT 1,5"]
[null,127]
[null,128]
[null,129]
[null,130]
[null,131]
[null,132]
[null,133]
[null,134]
[null,135]
[null,136]
[null,137]
[null,138]
[null,139]
[null,140]

{"sheet":"Tabelle1","index":1,"n_rows":126,"n_cols":48,"rows_kept":126,"cut":false,"hidden":false,"merged":[[36,25,36,33],[38,25,38,33],[36,39,36,46],[38,39,38,46],[34,35,34,37],[36,35,36,37],[38,35,38,37],[24,6,24,22],[26,6,26,22],[28,6,28,22],[32,39,32,46],[34,39,34,46],[30,6,30,22],[34,25,34,33],[11,6,11,22],[5,6,5,22],[9,6,9,22],[20,6,20,22],[22,6,22,22],[2,39,2,47],[2,36,2,38],[32,25,32,33],[111,6,112,47],[120,42,120,44],[18,34,18,37],[16,34,16,47],[18,42,18,47],[20,34,20,36],[13,6,13,22],[18,27,18,30],[28,43,28,44],[28,46,28,47],[32,35,32,37],[3,6,3,22],[7,6,7,22]]}
[]
[]
[null,null,null,null,null,"Kontrollstelle:",null,null,null,null,null,null,null,null,null,null,null,null,null,null,null,null,null,null,null,"Kontrollbericht & Plaketten",null,null,null,null,null,null,null,null,"Nr. ",null,"NRW- ",null,null,3358]
[null,null,null,null,null,null,{"$f":"IF(Tabelle2!B5=\"\",\"\",Tabelle2!B5)","v":"Landwirtschaftskammer Niedersachsen"},null,null,null,null,null,null,null,null,null,null,null,null,null,null,null,null,null,null,"über die Prüfung eines Pflanzenschutzgerätes gem. § 16 Abs. 4 PflSchG nach Richtlinie 3-1.0 des JKI "]
[]
[null,null,null,null,null,null,{"$f":"IF(Tabelle2!B6=\"\",\"\",Tabelle2!B6)","v":"Pflanzenschutzamt"},null,null,null,null,null,null,null,null,null,null,null,null,null,null,null,null,null,null,{"$f":"IF(Tabelle2!#REF!=TRUE,\"X\",\"\")","v":{"$error":"#REF!"}},1,"Spritz- und Sprühgerät für Flächenkulturen",null,null,null,null,null,null,null,null,null,null,{"$f":"IF(Tabelle2!#REF!=TRUE,\"X\",\"\")","v":{"$error":"#REF!"}},13,"Streifenspritzgerät"]
[]
[null,null,null,null,null,null,{"$f":"IF(Tabelle2!B7=\"\",\"\",Tabelle2!B7)","v":"Wunstorfer Landstraße 9"},null,null,null,null,null,null,null,null,null,null,null,null,null,null,null,null,null,null,{"$f":"IF(Tabelle2!#REF!=TRUE,\"X\",\"\")","v":{"$error":"#REF!"}},2,"Spritz- und Sprühgerät für Raumkulturen",null,null,null,null,null,null,null,null,null,null,{"$f":"IF(Tabelle2!#REF!=TRUE,\"X\",\"\")","v":{"$error":"#REF!"}},14,"Stationäres Flächenspritzgerät"]
[]
[null,null,null,null,null,null,{"$f":"IF(Tabelle2!B8=\"\",\"\",Tabelle2!B8)","v":"30453 Hannover"},null,null,null,null,null,null,null,null,null,null,null,null,null,null,null,null,null,null,{"$f":"IF(Tabelle2!#REF!=TRUE,\"X\",\"\")","v":{"$error":"#REF!"}},7,"Nebelgerät",null,null,null,null,null,null,null,null,null,null,{"$f":"IF(Tabelle2!#REF!=TRUE,\"X\",\"\")","v":{"$error":"#REF!"}},15,"Spritzzug"]
[]
[null,null,null,null,null,null,{"$f":"IF(Tabelle2!B9=\"\",\"\",Tabelle2!B9)","v":""},null,null,null,null,null,null,null,null,null,null,null,null,null,null,null,null,null,null,{"$f":"IF(Tabelle2!#REF!=TRUE,\"X\",\"\")","v":{"$error":"#REF!"}},11,"Karrenspritze",null,null,null,null,null,null,null,null,null,null,{"$f":"IF(Tabelle2!#REF!=TRUE,\"X\",\"\")","v":{"$error":"#REF!"}},16,"Zweiwegefahrzeug"]
[]
[null,null,null,null,null,null,{"$f":"IF(Tabelle2!B10=\"\",\"\",Tabelle2!B10)","v":""},null,null,null,null,null,null,null,null,null,null,null,null,null,null,null,null,null,null,{"$f":"IF(Tabelle2!#REF!=TRUE,\"X\",\"\")","v":{"$error":"#REF!"}},12,"Schlauchspritzanlage",null,null,null,null,null,null,null,null,null,null,{"$f":"IF(Tabelle2!#REF!=TRUE,\"X\",\"\")","v":{"$error":"#REF!"}},17,"Luftfahrzeug"]
[]
[]
[null,null,null,null,null,null,null,null,null,null,null,null,null,null,null,null,null,null,null,null,null,null,null,null,null,"Fabrikat bzw. Hersteller:",null,null,null,null,null,null,null,null,"Amazone"]
[]
[null,null,null,null,null,null,null,null,null,null,null,null,null,null,null,null,null,null,null,null,null,null,null,null,null,"Typ:",null,"UX",null,null,null,null,null,"Baujahr:",1996,null,null,null,null,null,null,"Maschinen-Nr.:","1877996-55"]
[]
[null,null,null,null,null,null,null,null,null,null,null,null,null,null,null,null,null,null,null,null,null,null,null,null,null,"Behälter: ",null,null,null,null,null,null,null,"Nennvolumen:",5200,null,null,"L",null,null,null,null,null,null,null,null,"Zusätzliche Rührpumpe:"]
[]
[null,null,null,null,null,null,null,null,null,null,null,null,null,null,null,null,null,null,null,null,null,null,null,null,null,"Rührwerk:",null,null,null,null,null,null,null,"mechanisch:",null,null,null,null,null,"hydraulisch:","x",null,null,null,null,null,"Sonstiges:"]
[]
[null,null,null,null,null,null,null,null,null,null,null,null,null,null,null,null,null,null,null,null,null,null,null,null,null,"Pumpe:",null,null,null,null,null,null,null,"Typ:",null,null,null,null,null,null,null,null,"L/min","bei",null,null,null,"bar"]
[]
[null,null,null,null,null,null,null,null,null,null,null,null,null,null,null,null,null,null,null,null,null,null,null,null,null,"Armatur:",null,null,null,null,null,null,null,"Typ:",null,null,null,null,null,"Gebläse:",null,null,"Typ:"]
[]
[null,null,null,null,null,null,null,null,null,null,null,null,null,null,null,null,null,null,null,null,null,null,null,null,null,"Gestänge:",null,null,null,null,null,null,null,"Typ:",null,null,null,null,null,null,null,null,"Arb.breite/Teilbreiten:",27,null,"m/",9]
[]
[null,null,null,null,null,null,null,null,null,null,null,null,null,null,null,null,null,null,null,null,null,null,null,null,null,"Düsen (Bezeichnung, Größe):",null,null,null,null,null,null,null,null,null,"Anzahl",null,null,null,null,null,null,null,null,null,null,null,"Variationskoeffizient/Abweichung"]
[]
[null,null,null,null,null,null,null,null,null,null,null,null,null,null,null,null,null,null,null,null,null,null,null,null,null,null,null,null,null,null,null,null,null,null,null,54,null,null,null,null,null,null,null,null,null,null,null,"%"]
[]
[null,null,null,null,null,"Zusätzliche Kontaktdaten (Telefon, e-mail usw.)",null,null,null,null,null,null,null,null,null,null,null,null,null,null,null,null,null,null,null,null,null,null,null,null,null,null,null,null,null,null,null,null,null,null,null,null,null,null,null,null,null,"%"]
[]
[null,null,null,null,null,null,null,null,null,null,null,null,null,null,null,null,null,null,null,null,null,null,null,null,null,null,null,null,null,null,null,null,null,null,null,null,null,null,null,null,null,null,null,null,null,null,null,"%"]
[]
[null,null,null,null,null,null,null,null,null,null,null,null,null,null,null,null,null,null,null,null,null,null,null,null,null,null,null,null,null,null,null,null,null,null,null,null,null,null,null,null,null,null,null,null,null,null,null,"%"]
[]
[]
[null,null,null,null,null,null,null,null,null,null,null,null,null,null,null,null,null,"Geringer Mangel: ","G",null,null,null,null,null,"nicht in Ordnung: ","X",null,null,null,null,null,null,null,null,null,null,null,null,null,"Geringer Mangel: ","G",null,null,null,null,null,"nicht in Ordnung: ","X"]
[null,null,null,null,null,null,"1.",null,"Sicherheit",null,null,null,null,null,null,null,null,null,null,null,null,null,null,null,null,null,null,"7.",null,"Filterung"]
[]
[null,null,null,null,null,null,"1.1K",null,"Antrieb",null,null,null,null,null,null,1,2,null,12,13,14,null,16,17,null,null,null,"7.1K",null,"Filter",null,null,null,null,null,null,null,1,2,7,12,13,14,15,16,17]
[]
[null,null,null,null,null,null,"1.2K",null,"Gelenkwelle",null,null,null,null,null,null,1,2,null,12,13,null,null,16,null,null,null,null,"7.2K",null,"Filtereinsätze",null,null,null,null,null,null,null,1,2,7,12,13,14,15,16,17]
[]
[null,null,null,null,null,null,"1.3K",null,"Berührungsschutz",null,null,null,null,null,null,null,null,7,null,null,null,null,null,null,null,null,null,"8.",null,"Spritzgestänge"]
[]
[null,null,null,null,null,null,"2.",null,"Pumpe",null,null,null,null,null,null,null,null,null,null,null,null,null,null,null,null,null,null,"8.1K",null,"Stabilität",null,null,null,null,null,null,null,1,null,null,null,13,14,15,16,17]
[]
[null,null,null,null,null,null,"2.1K",null,"Volumenstrom",null,null,null,null,null,null,1,2,null,12,13,14,15,16,17,null,null,null,"8.2K",null,"Hindernisausweichvorrichtung",null,null,null,null,null,null,null,1,null,null,null,13]
[]
[null,null,null,null,null,null,"2.2K",null,"Dichtigkeit",null,null,null,null,null,null,1,2,null,12,13,null,15,16,17,null,null,null,"8.3K",null,"Transportsicherung",null,null,null,null,null,null,null,1,2,null,null,null,null,null,16,17]
[]
[null,null,null,null,null,null,"2.3K",null,"Pulsationen",null,null,null,null,null,null,1,2,null,12,13,null,15,16,17,null,null,null,"8.4K",null,"Düsenanordnung",null,null,null,null,null,null,null,1,null,null,null,null,14]
[]
[null,null,null,null,null,null,"3. ",null,"Rührwerk",null,null,null,null,null,null,null,null,null,null,null,null,null,null,null,null,null,null,"8.5K",null,"Düsenausrichtung",null,null,null,null,null,null,null,1,null,7,null,13,14,null,null,17]
[]
[null,null,null,null,null,null,"3.1K",null,"Umwälzung",null,null,null,null,null,null,1,2,null,12,13,14,null,16,null,null,null,null,"8.6K",null,"Düsenschutz",null,null,null,null,null,null,null,1,null,null,null,null,14]
[]
[null,null,null,null,null,null,"4.",null,"Spritzflüssigkeitsbehälter",null,null,null,null,null,null,null,null,null,null,null,null,null,null,null,null,null,null,"8.7K",null,"Höhenverstelleinrichtung",null,null,null,null,null,null,null,1,null,null,null,13,14]
[]
[null,null,null,null,null,null,"4.1K",null,"Dichtigkeit",null,null,null,null,null,null,1,2,7,12,13,14,15,16,17,null,null,null,"8.8K",null,"Hangausgleich",null,null,null,null,null,null,null,1]
[]
[null,null,null,null,null,null,"4.2K",null,"Druckausgleich",null,null,null,null,null,null,1,2,null,12,13,14,15,16,null,null,null,null,"8.9K",null,"Gleichdruckeinrichtung",null,null,null,null,null,null,null,1,null,null,null,null,null,15,16]
[]
[null,null,null,null,null,null,"4.3K",null,"Füllstandsanzeige",null,null,null,null,null,null,1,2,7,12,13,14,15,16,17,null,null,null,"9.",null,"Düsen"]
[]
[null,null,null,null,null,null,"4.4K",null,"Ablassvorrichtung",null,null,null,null,null,null,1,2,7,12,13,14,15,16,17,null,null,null,"9.1K",null,"Düsenausstattung",null,null,null,null,null,null,null,1,null,null,null,null,14,15,16,17]
[]
[null,null,null,null,null,null,"4.5K",null,"Behälterfülleinrichtung",null,null,null,null,null,null,1,2,null,12,13,14,15,16,17,null,null,null,"9.2K",null,"Nachtropfen",null,null,null,null,null,null,null,1,2,7,12,13,14,15,16,17]
[]
[null,null,null,null,null,null,"4.6K",null,"Einspülschleuse",null,null,null,null,null,null,1,2,null,12,13,14,15,16,17,null,null,null,"9.3K",null,"Querverteilung",null,null,null,null,null,null,null,1,null,null,null,null,null,15,16]
[]
[null,null,null,null,null,null,"4.7K",null,"Einspülvorrichtung",null,null,null,null,null,null,1,2,null,12,13,14,15,16,17,null,null,null,"9.4K",null,"Düsenbestückung",null,null,null,null,null,null,null,null,2]
[]
[null,null,null,null,null,null,"4.8K",null,"Gebindespüleinrichtung",null,null,null,null,null,null,1,2,null,12,13,14,15,16,17,null,null,null,"9.5K",null,"Einzeldüsenabstellung",null,null,null,null,null,null,null,null,2]
[]
[null,null,null,null,null,null,"5.",null,"Armaturen",null,null,null,null,null,null,null,null,null,null,null,null,null,null,null,null,null,null,"9.6K",null,"Düseneinstellung",null,null,null,null,null,null,null,null,2,null,null,13]
[]
[null,null,null,null,null,null,"5.1K",null,"Bedienungseinrichtungen",null,null,null,null,null,null,1,2,7,12,13,14,15,16,17,null,null,null,"9.7K",null,"Spritzstrahl",null,null,null,null,null,null,null,1,2,null,12,13,14,15,16,17]
[]
[null,null,null,null,null,null,"5.2K",null,"Druckeinstellung",null,null,null,null,null,null,1,2,null,12,13,14,15,16,17,null,null,null,"9.8K",null,"Einzeldüsenausstoß",null,null,null,null,null,null,null,null,2,null,null,13,14]
[]
[null,null,null,null,null,null,"5.3K",null,"Bedienung",null,null,null,null,null,null,1,2,7,12,13,14,15,16,17,null,null,null,"9.9K",null,"Düsenausstoß",null,null,null,null,null,null,null,1,null,null,null,13]
[]
[null,null,null,null,null,null,"5.4K",null,"Druckanzeige",null,null,null,null,null,null,1,2,null,12,13,14,15,16,17,null,null,null,"10.",null,"Gebläse"]
[]
[null,null,null,null,null,null,"5.5K",null,"Manometergehäuse",null,null,null,null,null,null,1,2,null,12,13,14,15,16,17,null,null,null,"10.1K",null,"Gebläsezustand",null,null,null,null,null,null,null,1,2,7]
[]
[null,null,null,null,null,null,"5.6K",null,"Genauigkeit",null,null,null,null,null,null,1,2,null,12,13,14,15,16,17,null,null,null,"10.2K",null,"Gebläsekupplung",null,null,null,null,null,null,null,1,2]
[]
[null,null,null,null,null,null,"5.7K",null,"Zentralschaltung",null,null,null,null,null,null,1,2,null,12,13,14,15,16,17,null,null,null,"10.3K",null,"Luftleiteinrichtungen",null,null,null,null,null,null,null,1,2]
[]
[null,null,null,null,null,null,"5.8K",null,"Teilbreitenschaltung",null,null,null,null,null,null,1,2,null,null,13,14,15,16,17,null,null,null,"10.4K",null,"Gebläsedrehzahl",null,null,null,null,null,null,null,1,2,7]
[]
[null,null,null,null,null,null,"5.9K",null,"Dosiergenauigkeit",null,null,null,null,null,null,null,null,null,null,null,null,15,null,null,null,null,null,"11.",null,"Sonstige Ausrüstung"]
[]
[null,null,null,null,null,null,"5.10K",null,"Sensorschaltung",null,null,null,null,null,null,null,2,null,null,13,null,15,16,null,null,null,null,"11.1K",null,"Sonstige Ausrüstung",null,null,null,null,null,null,null,1,2,7,12,13,14,15,16,17]
[]
[null,null,null,null,null,null,"6.",null,"Leitungssystem",null,null,null,null,null,null,null,null,null,null,null,null,null,null,null,null,null,null,"Die geringen Mängel (G) werden umgehend beseitigt."]
[]
[null,null,null,null,null,null,"6.1K",null,"Dichtigkeit",null,null,null,null,null,null,1,2,7,12,13,14,15,16,17]
[]
[null,null,null,null,null,null,"6.2K",null,"Schlauchleitungen",null,null,null,null,null,null,1,2,7,12,13,14,15,16,17]
[]
[null,null,null,null,null,null,"6.3K",null,"Schlauchverlegung",null,null,null,null,null,null,1,2,7,null,13,14,15,16,17,null,null,null,"Unterschrift des Besitzers:"]
[]
[null,null,null,null,null,null,"Bemerkungen (Mängel, geringe Mängel, Empfehlungen, Sonstige Ausrüstung):"]
[]
[]
[]
[]
[]
[null,null,null,null,null,null,"Das Pflanzenschutzgerät  erfüllt die Voraussetzungen für Abdriftminderungeklasse ",null,null,null,null,null,null,null,null,null,null,null,null,null,null,null,null,null,null,null,null,null,null,null,null,50,"%",null,null,75,"%",null,null,90,"%",null,null,95,"%"]
[]
[]
[]
[null,null,null,null,null,"Ergebnis der Prüfung: ",null,null,null,null,null,null,null,null,null,null,null,"Plakette:",null,null,null,"Ja",null,null,"Nein",null,null,null,null,null,null,"Nächste Prüfung:",null,null,null,null,null,0,2,". Halbjahr",null,null,2017]
[]
[]
[]
[]
[null,null,null,null,null,null,"Land / Zuständige Dienststelle",null,null,null,null,null,null,null,null,null,null,null,null,null,null,null,null,null,"PLZ",null,null,"Kontrollort",null,null,null,null,null,null,null,null,null,"Datum",null,null,"Unterschrift des Prüfers"]

{"sheet":"Tabelle2","index":2,"n_rows":15,"n_cols":4,"rows_kept":15,"cut":false,"hidden":false,"merged":[]}
[null,"Geräteart"]
[null,"Granulatstreugeräte","\n"]
[]
[null,"Kontrollstelle:",null,"Geräte Besitzer:"]
[null,"Landwirtschaftskammer Niedersachsen"]
[null,"Pflanzenschutzamt"]
[null,"Wunstorfer Landstraße 9"]
[null,"30453 Hannover"]
[]
[]
[]
[null,"Land / zuständige Dienststelle",null,"zusätzliche Informationen (Tel., Email, etc.)"]
[null,"Niedersachsen / Pflanzenschutzamt"]
[]
[null,"Kontrollbetrieb:",null,"Betriebsnummer:"]

{"sheet":"14","index":3,"n_rows":128,"n_cols":58,"rows_kept":128,"cut":false,"hidden":false,"merged":[[30,42,30,44],[32,42,32,44],[36,4,38,20],[36,40,36,42],[95,6,95,10],[97,6,97,8],[45,27,45,31],[47,27,47,30],[51,27,51,29],[55,27,55,28],[63,27,63,36],[65,27,65,29],[69,27,69,30],[73,27,73,33],[49,6,49,9],[73,6,73,9],[59,6,59,10],[53,6,53,10],[81,6,81,10],[79,6,79,9],[77,6,77,9],[124,38,125,44],[38,40,38,42],[36,35,36,39],[38,23,38,27],[38,28,38,29],[38,30,38,31],[38,35,38,39],[36,43,36,45],[38,43,38,45],[87,27,87,30],[91,27,91,30],[93,27,93,31],[95,27,95,31],[36,23,36,27],[36,28,36,29],[36,30,36,31],[109,4,109,45],[110,4,117,45],[99,25,101,43],[124,4,125,18],[124,22,125,24],[124,25,125,31],[124,33,125,37],[121,35,121,37],[7,4,7,20],[18,32,18,34],[22,37,22,38],[22,42,22,44],[24,42,24,44],[26,32,26,35],[26,37,26,38],[26,42,26,44],[28,32,28,35],[28,37,28,38],[28,42,28,44],[9,4,9,20],[11,4,11,20],[11,32,11,45],[13,4,13,20],[13,25,13,28],[13,32,13,35],[13,40,13,45],[20,4,20,20],[20,32,20,35],[20,37,20,38],[20,42,20,44],[2,40,2,45],[3,4,3,20],[5,4,5,20],[22,4,22,20],[22,32,22,35],[121,41,121,45],[49,27,49,31],[61,27,61,32],[71,27,71,30],[77,27,77,31],[57,27,57,31],[59,27,59,31],[53,27,53,33],[51,6,51,10],[55,6,55,10],[63,6,63,10],[2,34,2,36],[2,37,2,39],[26,4,26,20],[28,4,28,20],[30,4,30,20],[85,6,85,10],[93,6,93,11],[99,6,99,12],[103,6,103,12],[101,6,101,12],[121,38,121,40],[16,32,16,35],[45,6,45,7],[47,6,47,9],[18,40,18,41],[24,4,24,20],[24,32,24,35],[24,37,24,38],[32,32,32,35],[30,32,30,35],[69,6,69,8],[67,6,67,10],[89,6,89,11]]}
["√",null,null,"√"]
["M",null,null,null,null,null,null,null,null,null,null,null,null,null,null,null,null,null,null,null,null,null,null,null,null,null,null,null,null,null,null,null,null,null,null,null,null,null,null,null,null,null,null,null,null,null,null,null,null,1,{"$f":"IF(Düsen!F4=\"\",\"\",Düsen!F4)","v":"Einscheiben"},{"$f":"IF(Düsen!G4=\"\",\"\",Düsen!G4)","v":"Adler"},{"$f":"IF(Düsen!H4=\"\",\"\",Düsen!H4)","v":"Frontanbau"},{"$f":"IF(Düsen!I4=\"\",\"\",Düsen!I4)","v":"Elektro"},{"$f":"IF(Düsen!J4=\"\",\"\",Düsen!J4)","v":"breitflächig"}]
["n.v.",null,null,null,null,null,null,null,null,null,null,null,null,null,null,null,null,null,null,null,null,null,null,"Kontrollbericht & Plaketten",null,null,null,null,null,null,null,null,"Nr. ",null,{"$f":"Tabelle2!D16","v":0},null,null,{"$f":"YEAR(AH125)","v":2020},null,null,null,null,null,null,null,null,null,null,true,2,{"$f":"IF(Düsen!F5=\"\",\"\",Düsen!F5)","v":"Zweischeiben"},{"$f":"IF(Düsen!G5=\"\",\"\",Düsen!G5)","v":"APV"},{"$f":"IF(Düsen!H5=\"\",\"\",Düsen!H5)","v":"Heckanbau"},{"$f":"IF(Düsen!I5=\"\",\"\",Düsen!I5)","v":"Gelenkwelle"},{"$f":"IF(Düsen!J5=\"\",\"\",Düsen!J5)","v":"Reihenapplikation"}]
["g.M.",null,null,null,{"$f":"IF(Tabelle2!B5=\"\",\"\",Tabelle2!B5)","v":"Landwirtschaftskammer Niedersachsen"},null,null,null,null,null,null,null,null,null,null,null,null,null,null,null,null,null,null,{"$f":"IF(AW3=TRUE,\"X\",\"\")","v":"X"},"regelmäßige Prüfung gem. § 16 Abs. 4 PflSchG nach RiLi 3-1.0 des JKI bzw. 2009/128/EG",null,null,null,null,null,null,null,null,null,null,null,null,null,null,null,null,null,null,null,null,null,null,null,false,3,{"$f":"IF(Düsen!F6=\"\",\"\",Düsen!F6)","v":"Pneumatisch"},{"$f":"IF(Düsen!G6=\"\",\"\",Düsen!G6)","v":"Hema"},{"$f":"IF(Düsen!H6=\"\",\"\",Düsen!H6)","v":"Aufbaugerät"},{"$f":"IF(Düsen!I6=\"\",\"\",Düsen!I6)","v":"Bodenantrieb"},{"$f":"IF(Düsen!J6=\"\",\"\",Düsen!J6)","v":""}]
[null,null,null,null,null,null,null,null,null,null,null,null,null,null,null,null,null,null,null,null,null,null,null,null,null,null,null,null,null,null,null,null,null,null,null,null,null,null,null,null,null,null,null,null,null,null,null,null,null,4,{"$f":"IF(Düsen!F7=\"\",\"\",Düsen!F7)","v":""},{"$f":"IF(Düsen!G7=\"\",\"\",Düsen!G7)","v":"Kverneland"},{"$f":"IF(Düsen!H7=\"\",\"\",Düsen!H7)","v":""},{"$f":"IF(Düsen!I7=\"\",\"\",Düsen!I7)","v":""},{"$f":"IF(Düsen!J7=\"\",\"\",Düsen!J7)","v":""}]
[null,null,null,null,{"$f":"IF(Tabelle2!B6=\"\",\"\",Tabelle2!B6)","v":"Pflanzenschutzamt"},null,null,null,null,null,null,null,null,null,null,null,null,null,null,null,null,null,null,{"$f":"IF(AW4=TRUE,\"X\",\"\")","v":""},"Nachprüfung",null,null,null,null,null,null,null,null,null,null,null,null,null,null,null,null,null,null,null,null,null,null,null,{"$f":"AG12","v":0},5,{"$f":"IF(Düsen!F8=\"\",\"\",Düsen!F8)","v":""},{"$f":"IF(Düsen!G8=\"\",\"\",Düsen!G8)","v":"Lehner"},{"$f":"IF(Düsen!H8=\"\",\"\",Düsen!H8)","v":""},{"$f":"IF(Düsen!I8=\"\",\"\",Düsen!I8)","v":""},{"$f":"IF(Düsen!J8=\"\",\"\",Düsen!J8)","v":""}]
[null,null,null,null,null,null,null,null,null,null,null,null,null,null,null,null,null,null,null,null,null,null,null,null,null,null,null,null,null,null,null,null,null,null,null,null,null,null,null,null,null,null,null,null,null,null,null,null,null,6,{"$f":"IF(Düsen!F9=\"\",\"\",Düsen!F9)","v":""},{"$f":"IF(Düsen!G9=\"\",\"\",Düsen!G9)","v":"Monosem"},{"$f":"IF(Düsen!H9=\"\",\"\",Düsen!H9)","v":""},{"$f":"IF(Düsen!I9=\"\",\"\",Düsen!I9)","v":""},{"$f":"IF(Düsen!J9=\"\",\"\",Düsen!J9)","v":""}]
[null,null,null,null,{"$f":"IF(Tabelle2!B7=\"\",\"\",Tabelle2!B7)","v":"Wunstorfer Landstraße 9"},null,null,null,null,null,null,null,null,null,null,null,null,null,null,null,null,null,null,6,{"$f":"IF(X8=6,\"Granulatstreugeräte\",\"\")","v":"Granulatstreugeräte"},null,null,null,null,null,null,null,null,null,null,null,null,null,null,null,null,null,null,null,null,null,null,null,{"$f":"Z14","v":0},7,{"$f":"IF(Düsen!F10=\"\",\"\",Düsen!F10)","v":""},{"$f":"IF(Düsen!G10=\"\",\"\",Düsen!G10)","v":"Solo"},{"$f":"IF(Düsen!H10=\"\",\"\",Düsen!H10)","v":""},{"$f":"IF(Düsen!I10=\"\",\"\",Düsen!I10)","v":""},{"$f":"IF(Düsen!J10=\"\",\"\",Düsen!J10)","v":""}]
[null,null,null,null,null,null,null,null,null,null,null,null,null,null,null,null,null,null,null,null,null,null,null,null,null,null,null,null,null,null,null,null,null,null,null,null,null,null,null,null,null,null,null,null,null,null,null,null,{"$f":"AG14","v":0},8,{"$f":"IF(Düsen!F11=\"\",\"\",Düsen!F11)","v":""},{"$f":"IF(Düsen!G11=\"\",\"\",Düsen!G11)","v":""},{"$f":"IF(Düsen!H11=\"\",\"\",Düsen!H11)","v":""},{"$f":"IF(Düsen!I11=\"\",\"\",Düsen!I11)","v":""},{"$f":"IF(Düsen!J11=\"\",\"\",Düsen!J11)","v":""}]
[null,null,null,null,{"$f":"IF(Tabelle2!B8=\"\",\"\",Tabelle2!B8)","v":"30453 Hannover"},null,null,null,null,null,null,null,null,null,null,null,null,null,null,null,null,null,null,null,null,null,null,null,null,null,null,null,null,null,null,null,null,null,null,null,null,null,null,null,null,null,null,null,{"$f":"AO14","v":0},9,{"$f":"IF(Düsen!F12=\"\",\"\",Düsen!F12)","v":""},{"$f":"IF(Düsen!G12=\"\",\"\",Düsen!G12)","v":""},{"$f":"IF(Düsen!H12=\"\",\"\",Düsen!H12)","v":""},{"$f":"IF(Düsen!I12=\"\",\"\",Düsen!I12)","v":""},{"$f":"IF(Düsen!J12=\"\",\"\",Düsen!J12)","v":""}]
[null,null,null,null,null,null,null,null,null,null,null,null,null,null,null,null,null,null,null,null,null,null,null,null,null,null,null,null,null,null,null,null,null,null,null,null,null,null,null,null,null,null,null,null,null,null,null,null,{"$f":"AG17","v":0},10,{"$f":"IF(Düsen!F13=\"\",\"\",Düsen!F13)","v":""},{"$f":"IF(Düsen!G13=\"\",\"\",Düsen!G13)","v":""},{"$f":"IF(Düsen!H13=\"\",\"\",Düsen!H13)","v":""},{"$f":"IF(Düsen!I13=\"\",\"\",Düsen!I13)","v":""},{"$f":"IF(Düsen!J13=\"\",\"\",Düsen!J13)","v":""}]
[null,null,null,null,{"$f":"IF(Tabelle2!B9=\"\",\"\",Tabelle2!B9)","v":""},null,null,null,null,null,null,null,null,null,null,null,null,null,null,null,null,null,null,"Fabrikat bzw. Hersteller:",null,null,null,null,null,null,null,null,null,null,null,null,null,null,null,null,null,null,null,null,null,null,null,null,null,11,{"$f":"IF(Düsen!F14=\"\",\"\",Düsen!F14)","v":""},{"$f":"IF(Düsen!G14=\"\",\"\",Düsen!G14)","v":""},{"$f":"IF(Düsen!H14=\"\",\"\",Düsen!H14)","v":""},{"$f":"IF(Düsen!I14=\"\",\"\",Düsen!I14)","v":""},{"$f":"IF(Düsen!J14=\"\",\"\",Düsen!J14)","v":""}]
[null,null,null,null,null,null,null,null,null,null,null,null,null,null,null,null,null,null,null,null,null,null,null,null,null,null,null,null,null,null,null,null,null,null,null,null,null,null,null,null,null,null,null,null,null,null,null,null,null,12,{"$f":"IF(Düsen!F15=\"\",\"\",Düsen!F15)","v":""},{"$f":"IF(Düsen!G15=\"\",\"\",Düsen!G15)","v":""},{"$f":"IF(Düsen!H15=\"\",\"\",Düsen!H15)","v":""},{"$f":"IF(Düsen!I15=\"\",\"\",Düsen!I15)","v":""},{"$f":"IF(Düsen!J15=\"\",\"\",Düsen!J15)","v":""}]
[null,null,null,null,{"$f":"IF(Tabelle2!B10=\"\",\"\",Tabelle2!B10)","v":""},null,null,null,null,null,null,null,null,null,null,null,null,null,null,null,null,null,null,"Typ:",null,null,null,null,null,null,null,"Baujahr:",null,null,null,null,null,null,null,"Maschinen-Nr.:",null,null,null,null,null,null,null,null,false,13,{"$f":"IF(Düsen!F16=\"\",\"\",Düsen!F16)","v":""},{"$f":"IF(Düsen!G16=\"\",\"\",Düsen!G16)","v":""},{"$f":"IF(Düsen!H16=\"\",\"\",Düsen!H16)","v":""},{"$f":"IF(Düsen!I16=\"\",\"\",Düsen!I16)","v":""},{"$f":"IF(Düsen!J16=\"\",\"\",Düsen!J16)","v":""}]
[null,null,null,null,null,null,null,null,null,null,null,null,null,null,null,null,null,null,null,null,null,null,null,null,null,null,null,null,null,null,null,null,null,null,null,null,null,null,null,null,null,null,null,null,null,null,null,null,null,14,{"$f":"IF(Düsen!F17=\"\",\"\",Düsen!F17)","v":""},{"$f":"IF(Düsen!G17=\"\",\"\",Düsen!G17)","v":""},{"$f":"IF(Düsen!H17=\"\",\"\",Düsen!H17)","v":""},{"$f":"IF(Düsen!I17=\"\",\"\",Düsen!I17)","v":""},{"$f":"IF(Düsen!J17=\"\",\"\",Düsen!J17)","v":""}]
[null,null,null,null,null,null,null,null,null,null,null,null,null,null,null,null,null,null,null,null,null,null,null,null,null,null,null,null,null,null,null,null,null,null,null,null,null,null,null,null,null,null,null,null,null,null,null,null,true,15,{"$f":"IF(Düsen!F18=\"\",\"\",Düsen!F18)","v":""},{"$f":"IF(Düsen!G18=\"\",\"\",Düsen!G18)","v":""},{"$f":"IF(Düsen!H18=\"\",\"\",Düsen!H18)","v":""},{"$f":"IF(Düsen!I18=\"\",\"\",Düsen!I18)","v":""},{"$f":"IF(Düsen!J18=\"\",\"\",Düsen!J18)","v":""}]
[null,null,null,null,null,null,null,null,null,null,null,null,null,null,null,null,null,null,null,null,null,null,null,"Verteileinrichtung (breit / Reihe)",null,null,null,null,null,null,null,null,null,null,null,null,null,null,null,null,null,null,null,null,null,null,2,null,false,16,{"$f":"IF(Düsen!F19=\"\",\"\",Düsen!F19)","v":""},{"$f":"IF(Düsen!G19=\"\",\"\",Düsen!G19)","v":""},{"$f":"IF(Düsen!H19=\"\",\"\",Düsen!H19)","v":""},{"$f":"IF(Düsen!I19=\"\",\"\",Düsen!I19)","v":""},{"$f":"IF(Düsen!J19=\"\",\"\",Düsen!J19)","v":""}]
[null,null,null,null,null,null,null,null,null,null,null,null,null,null,null,null,null,null,null,null,null,null,null,null,null,null,null,null,null,null,null,null,null,null,null,null,null,null,null,null,null,null,null,null,null,null,null,null,false,17,{"$f":"IF(Düsen!F20=\"\",\"\",Düsen!F20)","v":""},{"$f":"IF(Düsen!G20=\"\",\"\",Düsen!G20)","v":""},{"$f":"IF(Düsen!H20=\"\",\"\",Düsen!H20)","v":""},{"$f":"IF(Düsen!I20=\"\",\"\",Düsen!I20)","v":""},{"$f":"IF(Düsen!J20=\"\",\"\",Düsen!J20)","v":""}]
[null,null,null,null,null,null,null,null,null,null,null,null,null,null,null,null,null,null,null,null,null,null,null,"Behälter (Nennvolumen):",null,null,null,null,null,null,null,null,null,null,null,"kg",null,null,null,"Anz. Behälter:",null,null,null,null,null,{"$f":"IF(AW18=TRUE,\"X\",\"\")","v":""},null,null,null,18,{"$f":"IF(Düsen!F21=\"\",\"\",Düsen!F21)","v":""},{"$f":"IF(Düsen!G21=\"\",\"\",Düsen!G21)","v":""},{"$f":"IF(Düsen!H21=\"\",\"\",Düsen!H21)","v":""},{"$f":"IF(Düsen!I21=\"\",\"\",Düsen!I21)","v":""}]
[null,null,null,null,null,null,null,null,null,null,null,null,null,null,null,null,null,null,null,null,null,null,null,null,null,null,null,null,null,null,null,null,null,null,null,null,null,null,null,null,null,null,null,null,null,null,null,null,null,19,{"$f":"IF(Düsen!F22=\"\",\"\",Düsen!F22)","v":""},{"$f":"IF(Düsen!G22=\"\",\"\",Düsen!G22)","v":""},{"$f":"IF(Düsen!H22=\"\",\"\",Düsen!H22)","v":""}]
[null,null,null,null,{"$f":"IF(Tabelle2!D5=\"\",\"\",Tabelle2!D5)","v":""},null,null,null,null,null,null,null,null,null,null,null,null,null,null,null,null,null,null,"Antrieb",null,null,null,null,null,null,null,"Typ:",null,null,null,null,null,null,null,null,null,null,null,null,null,null,null,null,null,20,{"$f":"IF(Düsen!F23=\"\",\"\",Düsen!F23)","v":""},{"$f":"IF(Düsen!G23=\"\",\"\",Düsen!G23)","v":""},{"$f":"IF(Düsen!H23=\"\",\"\",Düsen!H23)","v":""}]
[null,null,null,null,null,null,null,null,null,null,null,null,null,null,null,null,null,null,null,null,null,null,null,null,null,null,null,null,null,null,null,null,null,null,null,null,null,null,null,null,null,null,null,null,null,null,null,null,null,21,{"$f":"IF(Düsen!F24=\"\",\"\",Düsen!F24)","v":""},{"$f":"IF(Düsen!G24=\"\",\"\",Düsen!G24)","v":""}]
[null,null,null,null,{"$f":"IF(Tabelle2!D6=\"\",\"\",Tabelle2!D6)","v":""},null,null,null,null,null,null,null,null,null,null,null,null,null,null,null,null,null,null,"Armatur",null,null,null,null,null,null,null,null,null,null,null,null,null,null,null,null,null,null,null,null,null,null,null,null,null,22,{"$f":"IF(Düsen!F25=\"\",\"\",Düsen!F25)","v":""},{"$f":"IF(Düsen!G25=\"\",\"\",Düsen!G25)","v":""}]
[null,null,null,null,null,null,null,null,null,null,null,null,null,null,null,null,null,null,null,null,null,null,null,null,null,null,null,null,null,null,null,null,null,null,null,null,null,null,null,null,null,null,null,null,null,null,null,null,null,23,{"$f":"IF(Düsen!F26=\"\",\"\",Düsen!F26)","v":""},{"$f":"IF(Düsen!G26=\"\",\"\",Düsen!G26)","v":""}]
[null,null,null,null,{"$f":"IF(Tabelle2!D7=\"\",\"\",Tabelle2!D7)","v":""},null,null,null,null,null,null,null,null,null,null,null,null,null,null,null,null,null,null,null,null,null,null,null,null,null,null,null,null,null,null,null,null,null,null,null,null,null,null,null,null,null,null,null,{"$f":"IF(X29=\"\",\"\",X29)","v":""},24,{"$f":"IF(Düsen!F27=\"\",\"\",Düsen!F27)","v":""},{"$f":"IF(Düsen!G27=\"\",\"\",Düsen!G27)","v":""}]
[null,null,null,null,null,null,null,null,null,null,null,null,null,null,null,null,null,null,null,null,null,null,null,null,null,null,null,null,null,null,null,null,null,null,null,null,null,null,null,null,null,null,null,null,null,null,null,null,null,25,{"$f":"IF(Düsen!F28=\"\",\"\",Düsen!F28)","v":""},{"$f":"IF(Düsen!G28=\"\",\"\",Düsen!G28)","v":""}]
[null,null,null,null,{"$f":"IF(Tabelle2!D8=\"\",\"\",Tabelle2!D8)","v":""},null,null,null,null,null,null,null,null,null,null,null,null,null,null,null,null,null,null,null,null,null,null,null,null,null,null,null,null,null,null,null,null,null,null,null,null,null,null,null,null,null,null,null,{"$f":"IF(X29=\"\",\"\",IF(ABS(AM31)>20,\"x\",IF(ABS(AR31)>20,\"x\",\"\")))","v":""},26,{"$f":"IF(Düsen!F29=\"\",\"\",Düsen!F29)","v":""},{"$f":"IF(Düsen!G29=\"\",\"\",Düsen!G29)","v":""}]
[null,null,null,null,null,null,null,null,null,null,null,null,null,null,null,null,null,null,null,null,null,null,null,null,null,null,null,null,null,null,null,null,null,null,null,null,null,null,null,null,null,null,null,null,null,null,null,null,{"$f":"IF(X33=\"\",\"\",X33)","v":""},27,{"$f":"IF(Düsen!F30=\"\",\"\",Düsen!F30)","v":""},{"$f":"IF(Düsen!G30=\"\",\"\",Düsen!G30)","v":""}]
[null,null,null,null,{"$f":"IF(Tabelle2!D9=\"\",\"\",Tabelle2!D9)","v":""},null,null,null,null,null,null,null,null,null,null,null,null,null,null,null,null,null,null,null,null,null,null,null,null,null,null,null,null,null,null,null,null,null,null,null,null,null,null,null,null,null,null,null,{"$f":"IF(X33=\"\",\"\",IF(ABS(AN33)>20,\"x\",IF(ABS(AS33)>20,\"x\",\"\")))","v":""},28,{"$f":"IF(Düsen!F31=\"\",\"\",Düsen!F31)","v":""},{"$f":"IF(Düsen!G31=\"\",\"\",Düsen!G31)","v":""}]
[null,null,null,null,null,null,null,null,null,null,null,null,null,null,null,null,null,null,null,null,null,null,null,null,null,null,null,null,null,null,null,null,null,null,null,null,null,null,null,null,null,null,null,null,null,null,null,null,{"$f":"IF(X35=\"\",\"\",X35)","v":""},29,{"$f":"IF(Düsen!F32=\"\",\"\",Düsen!F32)","v":""},{"$f":"IF(Düsen!G32=\"\",\"\",Düsen!G32)","v":""}]
[null,null,null,null,{"$f":"IF(Tabelle2!D10=\"\",\"\",Tabelle2!D10)","v":""},null,null,null,null,null,null,null,null,null,null,null,null,null,null,null,null,null,null,null,null,null,null,null,null,null,null,null,null,null,null,null,null,null,null,null,null,null,null,null,null,null,null,null,{"$f":"IF(X35=\"\",\"\",IF(ABS(AN35)>20,\"x\",IF(ABS(AS35)>20,\"x\",\"\")))","v":""},30,{"$f":"IF(Düsen!F33=\"\",\"\",Düsen!F33)","v":""},{"$f":"IF(Düsen!G33=\"\",\"\",Düsen!G33)","v":""}]
[null,null,null,null,null,null,null,null,null,null,null,null,null,null,null,null,null,null,null,null,null,null,null,null,null,null,null,null,null,null,null,null,null,null,null,null,null,null,null,null,null,null,null,null,null,null,null,null,null,31,{"$f":"IF(Düsen!F34=\"\",\"\",Düsen!F34)","v":""},{"$f":"IF(Düsen!G34=\"\",\"\",Düsen!G34)","v":""}]
[null,null,null,null,null,null,null,null,null,null,null,null,null,null,null,null,null,null,null,null,null,null,null,null,null,null,null,null,null,null,null,null,null,null,null,null,null,null,null,null,null,null,null,null,null,null,null,null,null,32,{"$f":"IF(Düsen!F35=\"\",\"\",Düsen!F35)","v":""},{"$f":"IF(Düsen!G35=\"\",\"\",Düsen!G35)","v":""}]
[null,null,null,null,null,null,null,null,null,null,null,null,null,null,null,null,null,null,null,null,null,null,null,null,null,null,null,null,null,null,null,null,null,null,null,null,null,null,null,null,null,null,null,null,null,null,null,null,null,33,{"$f":"IF(Düsen!F36=\"\",\"\",Düsen!F36)","v":""},{"$f":"IF(Düsen!G36=\"\",\"\",Düsen!G36)","v":""}]
[null,null,null,null,null,null,null,null,null,null,null,null,null,null,null,null,null,null,null,null,null,null,null,null,null,null,null,null,null,null,null,null,null,null,null,null,null,null,null,null,null,null,null,null,null,null,null,null,null,34,{"$f":"IF(Düsen!F37=\"\",\"\",Düsen!F37)","v":""},{"$f":"IF(Düsen!G37=\"\",\"\",Düsen!G37)","v":""}]
[null,null,null,null,null,null,null,null,null,null,null,null,null,null,null,null,null,null,null,null,null,null,null,null,null,null,null,null,null,null,null,null,null,null,null,null,null,null,null,null,null,null,null,null,null,null,null,null,null,35,{"$f":"IF(Düsen!F38=\"\",\"\",Düsen!F38)","v":""},{"$f":"IF(Düsen!G38=\"\",\"\",Düsen!G38)","v":""}]
[null,null,null,null,{"$f":"IF(Tabelle2!D13=\"\",\"\",Tabelle2!D13)","v":""},null,null,null,null,null,null,null,null,null,null,null,null,null,null,null,null,null,null,null,null,null,null,null,null,null,null,null,null,null,null,null,null,null,null,null,null,null,null,null,null,null,null,null,null,36,{"$f":"IF(Düsen!F39=\"\",\"\",Düsen!F39)","v":""},{"$f":"IF(Düsen!G39=\"\",\"\",Düsen!G39)","v":""}]
[null,null,null,null,null,null,null,null,null,null,null,null,null,null,null,null,null,null,null,null,null,null,null,null,null,null,null,null,null,null,null,null,null,null,null,null,null,null,null,null,null,null,null,null,null,null,null,null,null,37,{"$f":"IF(Düsen!F40=\"\",\"\",Düsen!F40)","v":""},{"$f":"IF(Düsen!G40=\"\",\"\",Düsen!G40)","v":""}]
[null,null,null,null,null,null,null,null,null,null,null,null,null,null,null,null,null,null,null,null,null,null,null,null,null,null,null,null,null,null,null,null,null,null,null,null,null,null,null,null,null,null,null,null,null,null,null,null,null,38,{"$f":"IF(Düsen!F41=\"\",\"\",Düsen!F41)","v":""},{"$f":"IF(Düsen!G41=\"\",\"\",Düsen!G41)","v":""}]
[null,null,null,null,null,null,null,null,null,null,null,null,null,null,null,null,null,null,null,null,null,null,null,null,null,null,null,null,null,null,null,null,null,null,null,null,null,null,null,null,null,null,null,null,null,null,null,null,null,39,{"$f":"IF(Düsen!F42=\"\",\"\",Düsen!F42)","v":""},{"$f":"IF(Düsen!G42=\"\",\"\",Düsen!G42)","v":""}]
[null,null,null,null,null,null,null,null,null,null,null,null,null,null,null,null,null,null,null,null,null,null,null,null,null,null,null,null,null,null,null,null,null,null,null,null,null,null,null,null,null,null,null,null,null,null,null,null,null,40,{"$f":"IF(Düsen!F43=\"\",\"\",Düsen!F43)","v":""},{"$f":"IF(Düsen!G43=\"\",\"\",Düsen!G43)","v":""}]
[null,null,null,null,null,null,null,null,"nicht in Ordnung: ","M",null,null,null,"in Ordnung:","√",null,null,null,null,"nicht vorhanden:","n.v.",null,null,null,null,null,null,null,null,null,null,null,null,null,null,null,null,null,null,null,null,null,null,null,null,null,null,null,null,41,{"$f":"IF(Düsen!F44=\"\",\"\",Düsen!F44)","v":""},{"$f":"IF(Düsen!G44=\"\",\"\",Düsen!G44)","v":""}]
[null,null,null,null,null,null,null,null,null,null,null,null,null,null,null,null,null,null,null,null,null,null,null,null,null,null,null,null,null,null,null,null,null,null,null,null,null,null,null,null,null,null,null,null,null,null,null,null,null,42,{"$f":"IF(Düsen!F45=\"\",\"\",Düsen!F45)","v":""},{"$f":"IF(Düsen!G45=\"\",\"\",Düsen!G45)","v":""}]
[null,null,null,null,"1.",null,"Sicherheit",null,null,null,null,null,null,null,null,null,null,null,null,null,null,null,null,null,null,null,null,null,null,null,null,null,null,null,null,null,null,null,null,null,null,null,null,null,null,null,null,null,null,43,{"$f":"IF(Düsen!F46=\"\",\"\",Düsen!F46)","v":""},{"$f":"IF(Düsen!G46=\"\",\"\",Düsen!G46)","v":""}]
[null,null,null,null,null,null,null,null,null,null,null,null,null,null,null,null,null,null,null,null,null,null,null,null,null,null,null,null,null,null,null,null,null,null,null,null,null,null,null,null,null,null,null,null,null,null,null,null,null,44,{"$f":"IF(Düsen!F47=\"\",\"\",Düsen!F47)","v":""},{"$f":"IF(Düsen!G47=\"\",\"\",Düsen!G47)","v":""}]
[1,null,null,null,"1.5K",null,"Antrieb",null,null,null,null,null,null,null,null,null,null,null,null,null,null,null,null,{"$f":"IF(A46=2,\"M\",IF(A46=3,\"n.v.\",IF(A46=4,\"n.v.\",$A$1)))","v":"√"},null,null,null,null,null,null,null,null,null,null,null,null,null,null,null,null,null,null,null,null,null,null,null,null,1,45,{"$f":"IF(Düsen!F48=\"\",\"\",Düsen!F48)","v":""},{"$f":"IF(Düsen!G48=\"\",\"\",Düsen!G48)","v":""}]
[null,null,null,null,null,null,null,null,null,null,null,null,null,null,null,null,null,null,null,null,null,null,null,null,null,null,null,null,null,null,null,null,null,null,null,null,null,null,null,null,null,null,null,null,null,null,null,null,null,46,{"$f":"IF(Düsen!F49=\"\",\"\",Düsen!F49)","v":""},{"$f":"IF(Düsen!G49=\"\",\"\",Düsen!G49)","v":""}]
[1,null,null,null,"1.7K",null,"Tragrahmen",null,null,null,null,null,null,null,null,null,null,null,null,null,null,null,null,{"$f":"IF(A48=2,\"M\",IF(A48=3,\"n.v\",IF(A48=4,\"n.v.\",$A$1)))","v":"√"},null,null,null,null,null,null,null,null,null,null,null,null,null,null,null,null,null,null,null,null,null,null,null,null,1,47,{"$f":"IF(Düsen!F50=\"\",\"\",Düsen!F50)","v":""},{"$f":"IF(Düsen!G50=\"\",\"\",Düsen!G50)","v":""}]
[null,null,null,null,null,null,null,null,null,null,null,null,null,null,null,null,null,null,null,null,null,null,null,null,null,null,null,null,null,null,null,null,null,null,null,null,null,null,null,null,null,null,null,null,null,null,null,null,null,48,{"$f":"IF(Düsen!F51=\"\",\"\",Düsen!F51)","v":""},{"$f":"IF(Düsen!G51=\"\",\"\",Düsen!G51)","v":""}]
[1,null,null,null,"1.10K",null,"Befestigung",null,null,null,null,null,null,null,null,null,null,null,null,null,null,null,null,{"$f":"IF(A50=2,\"M\",IF(A50=3,\"n.v.\",IF(A50=4,\"n.v.\",$A$1)))","v":"√"},null,null,null,null,null,null,null,null,null,null,null,null,null,null,null,null,null,null,null,null,null,null,null,null,1,49,{"$f":"IF(Düsen!F52=\"\",\"\",Düsen!F52)","v":""},{"$f":"IF(Düsen!G52=\"\",\"\",Düsen!G52)","v":""}]
[null,null,null,null,null,null,null,null,null,null,null,null,null,null,null,null,null,null,null,null,null,null,null,null,null,null,null,null,null,null,null,null,null,null,null,null,null,null,null,null,null,null,null,null,null,null,null,null,null,50,{"$f":"IF(Düsen!F53=\"\",\"\",Düsen!F53)","v":""},{"$f":"IF(Düsen!G53=\"\",\"\",Düsen!G53)","v":""}]
[1,null,null,null,"1.12K",null,"Transportsicherung",null,null,null,null,null,null,null,null,null,null,null,null,null,null,null,null,{"$f":"IF(A52=2,\"M\",IF(A52=3,\"n.v.\",IF(A52=4,\"n.v.\",$A$1)))","v":"√"},null,null,null,null,null,null,null,null,null,null,null,null,null,null,null,null,null,null,null,null,null,null,null,null,1,51,{"$f":"IF(Düsen!F54=\"\",\"\",Düsen!F54)","v":""},{"$f":"IF(Düsen!G54=\"\",\"\",Düsen!G54)","v":""}]
[null,null,null,null,null,null,null,null,null,null,null,null,null,null,null,null,null,null,null,null,null,null,null,null,null,null,null,null,null,null,null,null,null,null,null,null,null,null,null,null,null,null,null,null,null,null,null,null,null,52,{"$f":"IF(Düsen!F55=\"\",\"\",Düsen!F55)","v":""},{"$f":"IF(Düsen!G55=\"\",\"\",Düsen!G55)","v":""}]
[1,null,null,null,"1.14K",null,"Abschalteinrichtung",null,null,null,null,null,null,null,null,null,null,null,null,null,null,null,null,{"$f":"IF(A54=2,\"M\",IF(A54=3,\"n.v.\",IF(A54=4,\"n.v.\",$A$1)))","v":"√"},null,null,null,null,null,null,null,null,null,null,null,null,null,null,null,null,null,null,null,null,null,null,null,null,4,53,{"$f":"IF(Düsen!F56=\"\",\"\",Düsen!F56)","v":""},{"$f":"IF(Düsen!G56=\"\",\"\",Düsen!G56)","v":""}]
[null,null,null,null,null,null,null,null,null,null,null,null,null,null,null,null,null,null,null,null,null,null,null,null,null,null,null,null,null,null,null,null,null,null,null,null,null,null,null,null,null,null,null,null,null,null,null,null,null,54,{"$f":"IF(Düsen!F57=\"\",\"\",Düsen!F57)","v":""},{"$f":"IF(Düsen!G57=\"\",\"\",Düsen!G57)","v":""}]
[1,null,null,null,"1.15K",null,"Feuchteschutz",null,null,null,null,null,null,null,null,null,null,null,null,null,null,null,null,{"$f":"IF(A56=2,\"M\",IF(A56=3,\"n.v.\",IF(A56=4,\"n.v.\",$A$1)))","v":"√"},null,null,null,null,null,null,null,null,null,null,null,null,null,null,null,null,null,null,null,null,null,null,null,null,3,55,{"$f":"IF(Düsen!F58=\"\",\"\",Düsen!F58)","v":""},{"$f":"IF(Düsen!G58=\"\",\"\",Düsen!G58)","v":""}]
[null,null,null,null,null,null,null,null,null,null,null,null,null,null,null,null,null,null,null,null,null,null,null,null,null,null,null,null,null,null,null,null,null,null,null,null,null,null,null,null,null,null,null,null,null,null,null,null,null,56,{"$f":"IF(Düsen!F59=\"\",\"\",Düsen!F59)","v":""},{"$f":"IF(Düsen!G59=\"\",\"\",Düsen!G59)","v":""}]
[1,null,null,null,"3.",null,"Rührwerk",null,null,null,null,null,null,null,null,null,null,null,null,null,null,null,null,null,null,null,null,null,null,null,null,null,null,null,null,null,null,null,null,null,null,null,null,null,null,null,null,null,1,57,{"$f":"IF(Düsen!F60=\"\",\"\",Düsen!F60)","v":""},{"$f":"IF(Düsen!G60=\"\",\"\",Düsen!G60)","v":""}]
[null,null,null,null,null,null,null,null,null,null,null,null,null,null,null,null,null,null,null,null,null,null,null,null,null,null,null,null,null,null,null,null,null,null,null,null,null,null,null,null,null,null,null,null,null,null,null,null,null,58,{"$f":"IF(Düsen!F61=\"\",\"\",Düsen!F61)","v":""},{"$f":"IF(Düsen!G61=\"\",\"\",Düsen!G61)","v":""}]
[1,null,null,null,"3.4K",null,"Rührwerk",null,null,null,null,null,null,null,null,null,null,null,null,null,null,null,null,{"$f":"IF(A60=2,\"M\",IF(A60=3,\"n.v.\",IF(A60=4,\"n.v.\",$A$1)))","v":"√"},null,null,null,null,null,null,null,null,null,null,null,null,null,null,null,null,null,null,null,null,null,null,null,null,3,59,{"$f":"IF(Düsen!F62=\"\",\"\",Düsen!F62)","v":""},{"$f":"IF(Düsen!G62=\"\",\"\",Düsen!G62)","v":""}]
[null,null,null,null,null,null,null,null,null,null,null,null,null,null,null,null,null,null,null,null,null,null,null,null,null,null,null,null,null,null,null,null,null,null,null,null,null,null,null,null,null,null,null,null,null,null,null,null,null,60,{"$f":"IF(Düsen!#REF!=\"\",\"\",Düsen!#REF!)","v":{"$error":"#REF!"}},{"$f":"IF(Düsen!G63=\"\",\"\",Düsen!G63)","v":""}]
[1,null,null,null,"4.",null,"Behälter",null,null,null,null,null,null,null,null,null,null,null,null,null,null,null,null,null,null,null,null,null,null,null,null,null,null,null,null,null,null,null,null,null,null,null,null,null,null,null,null,null,3,null,null,{"$f":"IF(Düsen!G64=\"\",\"\",Düsen!G64)","v":""}]
[null,null,null,null,null,null,null,null,null,null,null,null,null,null,null,null,null,null,null,null,null,null,null,null,null,null,null,null,null,null,null,null,null,null,null,null,null,null,null,null,null,null,null,null,null,null,null,null,null,null,null,{"$f":"IF(Düsen!G65=\"\",\"\",Düsen!G65)","v":""},null,{"$f":"IF(Düsen!#REF!=\"\",\"\",Düsen!#REF!)","v":{"$error":"#REF!"}}]
[1,null,null,null,"4.15K",null,"Füllstandsanzeige",null,null,null,null,null,null,null,null,null,null,null,null,null,null,null,null,{"$f":"IF(A64=2,\"M\",IF(A64=3,\"n.v.\",IF(A64=4,\"n.v.\",$A$1)))","v":"√"},null,null,null,null,null,null,null,null,null,null,null,null,null,null,null,null,null,null,null,null,null,null,null,null,3]
[]
[1,null,null,null,"5.",null,"Armaturen",null,null,null,null,null,null,null,null,null,null,null,null,null,null,null,null,null,null,null,null,null,null,null,null,null,null,null,null,null,null,null,null,null,null,null,null,null,null,null,null,null,3]
[]
[1,null,null,null,"5.24K",null,"Stellvorrichtungen",null,null,null,null,null,null,null,null,null,null,null,null,null,null,null,null,{"$f":"IF(A68=2,\"M\",IF(A68=3,\"n.v.\",IF(A68=4,\"n.v.\",$A$1)))","v":"√"},null,null,null,null,null,null,null,null,null,null,null,null,null,null,null,null,null,null,null,null,null,null,null,null,3]
[]
[1,null,null,null,"5.25K",null,"Verteilung",null,null,null,null,null,null,null,null,null,null,null,null,null,null,null,null,{"$f":"IF(A70=2,\"M\",IF(A70=3,\"n.v.\",IF(A70=4,\"n.v.\",$A$1)))","v":"√"},null,null,null,null,null,null,null,null,null,null,null,null,null,null,null,null,null,null,null,null,null,null,null,null,3]
[]
[1,null,null,null,"6.",null,"Leitungssystem",null,null,null,null,null,null,null,null,null,null,null,null,null,null,null,null,null,null,null,null,null,null,null,null,null,null,null,null,null,null,null,null,null,null,null,null,null,null,null,null,null,3]
[]
[1,null,null,null,"6.5K",null,"Granulatrohre",null,null,null,null,null,null,null,null,null,null,null,null,null,null,null,null,{"$f":"IF(A74=2,\"M\",IF(A74=3,\"n.v.\",IF(A74=4,\"n.v.\",$A$1)))","v":"√"},null,null,null,null,null,null,null,null,null,null,null,null,null,null,null,null,null,null,null,null,null,null,null,null,3]
[]
[1,null,null,null,"8.",null,"Ablageeinrichtung",null,null,null,null,null,null,null,null,null,null,null,null,null,null,null,null,null,null,null,null,null,null,null,null,null,null,null,null,null,null,null,null,null,null,null,null,null,null,null,null,null,4]
[]
[1,null,null,null,"8.11K",null,"Granulatablage",null,null,null,null,null,null,null,null,null,null,null,null,null,null,null,null,{"$f":"IF(A78=2,\"M\",IF(A78=3,\"n.v.\",IF(A78=4,\"n.v.\",$A$1)))","v":"√"},null,null,null,null,null,null,null,null,null,null,null,null,null,null,null,null,null,null,null,null,null,null,null,null,3]
[]
[1,null,null,null,"8.12K",null,"Einarbeitung",null,null,null,null,null,null,null,null,null,null,null,null,null,null,null,null,{"$f":"IF(A80=2,\"M\",IF(A80=3,\"n.v.\",IF(A80=4,\"n.v.\",$A$1)))","v":"√"}]
[]
[1,null,null,null,"8.13",null,"Granulatdosierung",null,null,null,null,null,null,null,null,null,null,null,null,null,null,null,null,{"$f":"IF(A82=2,\"M\",IF(A82=3,\"n.v.\",IF(A82=4,\"n.v.\",$A$1)))","v":"√"},null,null,null,null,null,null,null,null,null,null,null,null,null,null,null,null,null,null,null,null,null,null,null,null,2]
[]
[1,null,null,null,"10.1",null,"Gebläse",null,null,null,null,null,null,null,null,null,null,null,null,null,null,null,null,null,null,null,null,null,null,null,null,null,null,null,null,null,null,null,null,null,null,null,null,null,null,null,null,null,1]
[]
[1,null,null,null,"10.1K",null,"Gebläsezustand",null,null,null,null,null,null,null,null,null,null,null,null,null,null,null,null,{"$f":"IF(A86=2,\"M\",IF(A86=3,\"n.v.\",IF(A86=4,\"n.v.\",$A$1)))","v":"√"},null,null,null,null,null,null,null,null,null,null,null,null,null,null,null,null,null,null,null,null,null,null,null,null,4]
[]
[1,null,null,null,"11.",null,"Sonstige Ausrüstung",null,null,null,null,null,null,null,null,null,null,null,null,null,null,null,null,null,null,null,null,null,null,null,null,null,null,null,null,null,null,null,null,null,null,null,null,null,null,null,null,null,1]
[]
[3,null,null,null,"11.1K",null,"Sonstige Ausrüstung",null,null,null,null,null,null,null,null,null,null,null,null,null,null,null,null,{"$f":"IF(A90=2,\"M\",IF(A90=3,\"n.v.\",IF(A90=4,\"g.M.\",$A$1)))","v":"n.v."}]
[]
[1,null,null,null,null,null,null,null,null,null,null,null,null,null,null,null,null,null,null,null,null,null,null,null,null,null,null,null,null,null,null,null,null,null,null,null,null,null,null,null,null,null,null,null,null,null,null,null,4]
[null,null,null,null,null,null,null,null,null,null,null,null,null,null,null,null,null,null,null,null,null,null,null,null,null,null,null,null,null,null,null,null,null,null,null,null,null,null,null,null,null,null,null,null,null,null,null,null,null,null,null,null,null,null,null,null,{"$f":"IF($X$29=\"\",\"\",#REF!)","v":""},{"$f":"IF($X$29=\"\",\"\",#REF!)","v":""}]
[1,null,null,null,null,null,null,null,null,null,null,null,null,null,null,null,null,null,null,null,null,null,null,null,null,null,null,null,null,null,null,null,null,null,null,null,null,null,null,null,null,null,null,null,null,null,null,null,4]
[]
[1,null,null,null,null,null,null,null,null,null,null,null,null,null,null,null,null,null,null,null,null,null,null,null,null,null,null,null,null,null,null,null,null,null,null,null,null,null,null,null,null,null,null,null,null,null,null,null,4]
[]
[1,null,null,null,null,null,null,null,null,null,null,null,null,null,null,null,null,null,null,null,null,null,null,null,null,"Die geringen Mängel (G) werden umgehend beseitigt.",null,null,null,null,null,null,null,null,null,null,null,null,null,null,null,null,null,null,null,null,null,null,4]
[]
[1,null,null,null,null,null,null,null,null,null,null,null,null,null,null,null,null,null,null,null,null,null,null,null,null,{"$f":"IF(Tabelle2!$D$5=\"\",\"\",Tabelle2!$D$5)","v":""}]
[]
[1,null,null,null,null,null,null,null,null,null,null,null,null,null,null,null,null,null,null,null,null,null,null,null,null,null,null,null,null,null,null,null,null,null,null,null,null,null,null,null,null,null,null,null,null,null,null,null,4]
[]
[1,null,null,null,null,null,null,null,null,null,null,null,null,null,null,null,null,null,null,null,null,null,null,null,null,"Unterschrift/Name des Besitzers:"]
[]
[1]
[]
[1,null,null,null,"Bemerkungen (Mängel, geringe Mängel, Empfehlungen, Sonstige Ausrüstung):",null,null,null,null,null,null,null,null,null,null,null,null,null,null,null,null,null,null,null,null,null,null,null,null,{"$f":"IF(X37=\"\",\"\",\"X\")","v":""}]
[]
[1,null,null,null,"Mit der Vergabe einer gültigen Kontrollplakette verpflichtet sich der Gerätebesitzer geringe Mängel am Gerät unverzüglich abzustellen (der Prüfbericht ist elektronisch erstellt und ohne Unterschrift gültig)"]
[]
[]
[]
[]
[]
[]
[null,null,null,null,null,null,null,null,null,null,null,null,null,null,null,null,null,null,null,null,null,null,null,null,null,null,null,null,null,null,null,null,null,null,null,null,null,null,null,null,null,null,null,null,null,null,null,null,false]
[null,null,null,null,null,null,null,null,null,null,null,null,null,null,null,null,null,null,null,null,null,null,null,null,null,null,null,null,null,null,null,null,null,null,null,null,null,null,null,null,null,null,null,null,null,null,null,null,false]
[]
[null,null,null,null,null,null,null,null,null,null,null,null,null,null,null,null,null,null,null,null,null,null,null,null,null,null,null,null,null,null,null,null,null,null,null,null,null,null,null,null,null,null,null,null,null,null,null,null,false]
[]
[null,null,null,null,null,null,null,null,null,null,null,null,null,null,null,"Plakette:",null,null,{"$f":"IF(AW128=TRUE,\"X\",\"\")","v":"X"},"Ja",null,{"$f":"IF(S122=\"X\",\"\",\"X\")","v":""},"Nein",null,null,null,null,null,null,"Nächste Prüfung:",null,null,null,null,null,{"$f":"IF(AW126<7,\"Erstes\",\"Zweites\")","v":"Erstes"},null,null,". Halbjahr",null,null,{"$f":"AL3+3","v":2023},null,null,null,null,null,null,false]
[]
[]
[null,null,null,null,{"$f":"IF(Tabelle2!B13=\"\",\"\",Tabelle2!B13)","v":"Niedersachsen / Pflanzenschutzamt"},null,null,null,null,null,null,null,null,null,null,null,null,null,null,null,null,null,null,null,null,null,null,null,null,null,null,null,null,"2020-01-01"]
[null,null,null,null,null,null,null,null,null,null,null,null,null,null,null,null,null,null,null,null,null,null,null,null,null,null,null,null,null,null,null,null,null,null,null,null,null,null,null,null,null,null,null,null,null,null,null,null,{"$f":"MONTH(AH125)","v":1}]
[null,null,null,null,"Land / Zuständige Dienststelle",null,null,null,null,null,null,null,null,null,null,null,null,null,null,null,null,null,"PLZ",null,null,"Kontrollort",null,null,null,null,null,null,null,null,null,"Datum",null,null,"Unterschrift/Name des Prüfers"]
[null,null,null,null,null,null,null,null,null,null,null,null,null,null,null,null,null,null,null,null,null,null,null,null,null,null,null,null,null,null,null,null,null,null,null,null,null,null,null,null,null,null,null,null,null,null,null,null,true]

{"sheet":"Übersicht","index":4,"n_rows":358,"n_cols":4,"rows_kept":358,"cut":false,"hidden":false,"merged":[]}
[{"$f":"'14'!AO3","v":0},"PlakettenNr",0,0]
[{"$f":"'14'!AW3","v":true},"regelm. Prüfung",true,true]
[{"$f":"'14'!AW4","v":false},"Nachprüfung",false,false]
[{"$f":"Tabelle2!D5","v":0},"Name","Frieda Mustermann","Frieda Mustermann"]
[{"$f":"Tabelle2!D6","v":0},"Straße","Musterweg 3","Musterweg 3"]
[{"$f":"Tabelle2!D7","v":0},"Ort","48147 Musterhausen","48147 Musterhausen"]
[{"$f":"Tabelle2!D13","v":0},"Email","hans.dampf@gmx.de","hans.dampf@gmx.de"]
[{"$f":"'14'!AW6","v":0},"Hersteller","Niklas","Eigenbau"]
[{"$f":"'14'!AW8","v":0},"Typ","Kontinuierlich","Kontinuierlich"]
[{"$f":"'14'!AW9","v":0},"Baujahr",0,0]
[{"$f":"'14'!AW10","v":0},"MaschinenNr",0,0]
[{"$f":"'14'!AW11","v":0},"Behälter(l)",0,0]
[null,"Rührwerk"]
[{"$f":"'14'!AW16","v":true},"mechan.",true,true]
[{"$f":"'14'!AW17","v":false},"hydr.",false,false]
[{"$f":"'14'!AW18","v":false},"sonst.",false,false]
[{"$f":"'14'!AW14","v":false},"zusätzlich",false,false]
[{"$f":"'14'!AG21","v":0},"Pumpe","",""]
[{"$f":"'14'!AL21","v":0},"l/min",0,0]
[{"$f":"'14'!AQ21","v":0},"bar",0,0]
[{"$f":"'14'!AG23","v":0},"Armatur",0,0]
[{"$f":"'14'!AP23","v":0},"Geblase","bei","bei"]
[{"$f":"'14'!AG25","v":0},"Gestänge",0,0]
[{"$f":"'14'!AP25","v":0},"Arb.breite (m)","bei","bei"]
[{"$f":"'14'!AS25","v":0},"Teilbreite",0,0]
[{"$f":"IF('14'!AW25=\"\",\"\",'14'!AW25)","v":""},"Düse01","Förderpumpe (Beizmittel)","Förderpumpe (Beizmittel)"]
[{"$f":"IF('14'!AW27=\"\",\"\",'14'!AW27)","v":""},"nicht i.O.","",""]
[{"$f":"IF('14'!AW28=\"\",\"\",'14'!AW28)","v":""},"Düse02","",""]
[{"$f":"IF('14'!AW29=\"\",\"\",'14'!AW29)","v":""},"nicht i.O.","",""]
[{"$f":"IF('14'!AW30=\"\",\"\",'14'!AW30)","v":""},"Düse03","Düsen (Bezeichnung, Größe, Abweichung):","Düsen (Bezeichnung, Größe, Abweichung):"]
[{"$f":"IF('14'!AW31=\"\",\"\",'14'!AW31)","v":""},"nicht i.O.","",""]
[{"$f":"'14'!AD108","v":""},"Anlage","",""]
[{"$f":"'14'!AW117","v":false},0.5,false,false]
[{"$f":"'14'!AW118","v":false},0.75,false,false]
[{"$f":"'14'!AW120","v":false},0.9,false,false]
[{"$f":"'14'!AW122","v":false},0.95,false,false]
[{"$f":"'14'!AH125","v":"2020-01-01"},"Datum",43237,43321]
[{"$f":"'14'!AW128","v":true},"Plakette JA",true,true]
[null,"Merkmale"]
[{"$f":"'14'!A46","v":1},"1.1K",1,1]
[{"$f":"'14'!A48","v":1},"1.2K",1,1]
[{"$f":"'14'!A50","v":1},"1.3K",4,1]
[{"$f":"'14'!A54","v":1},"2.1K",1,1]
[{"$f":"'14'!A56","v":1},"2.2K",1,1]
[{"$f":"'14'!A58","v":1},"2.3K",1,1]
[{"$f":"'14'!A62","v":1},"3.1K",1,1]
[{"$f":"'14'!A66","v":1},"4.1K",1,1]
[{"$f":"'14'!A68","v":1},"4.2K",1,1]
[{"$f":"'14'!A70","v":1},"4.3K",1,1]
[{"$f":"'14'!A72","v":1},"4.4K",1,1]
[{"$f":"'14'!A74","v":1},"4.5K",1,1]
[{"$f":"'14'!A76","v":1},"4.6K",1,1]
[{"$f":"'14'!A78","v":1},"4.7K",4,1]
[{"$f":"'14'!A80","v":1},"4.8K",1,1]
[{"$f":"'14'!A84","v":1},"5.1K",1,1]
[{"$f":"'14'!A86","v":1},"5.2K",1,1]
[{"$f":"'14'!A88","v":1},"5.3K",1,1]
[{"$f":"'14'!A90","v":3},"5.4K",1,1]
[{"$f":"'14'!A92","v":1},"5.5K",1,1]
[{"$f":"'14'!A94","v":1},"5.6K",1,1]
[{"$f":"'14'!A96","v":1},"5.7K",1,1]
[{"$f":"'14'!A98","v":1},"5.8K",1,1]
[{"$f":"'14'!A102","v":1},"5.10K",3,1]
[{"$f":"'14'!A106","v":1},"6.1K",1,1]
[{"$f":"'14'!A108","v":1},"6.2K",1,1]
[{"$f":"'14'!A110","v":1},"6.3K",1,1]
[{"$f":"'14'!AW46","v":1},"7.1K",1,1]
[{"$f":"'14'!AW48","v":1},"7.2K",1,1]
[{"$f":"'14'!AW52","v":1},"8.1K",1,1]
[{"$f":"'14'!AW54","v":4},"8.2K",4,4]
[{"$f":"'14'!AW60","v":3},"8.5K",3,3]
[{"$f":"'14'!AW64","v":3},"8.7K",3,3]
[{"$f":"'14'!AW72","v":3},"9.1K",3,3]
[{"$f":"'14'!AW74","v":3},"9.2K",3,3]
[{"$f":"'14'!AW76","v":4},"9.3K",4,4]
[{"$f":"'14'!AW82","v":2},"9.6K",2,2]
[{"$f":"'14'!AW84","v":1},"9.7K",1,1]
[{"$f":"'14'!AW86","v":4},"9.8K",4,4]
[{"$f":"'14'!AW88","v":1},"9.9K",1,1]
[{"$f":"'14'!AW102","v":4},"11.1K",4,4]
[{"$f":"'14'!W125","v":0},"PLZ",48147,48147]
[{"$f":"'14'!Z125","v":0},"Kontrollort","Münster","Münster"]
[null,"Anlage 01"]
[{"$f":"'14'!BD3","v":0},"Druck",0,0]
[{"$f":"'14'!BD4","v":0},"Zeit (s)",0,0]
[{"$f":"'14'!BD5","v":0},"Gesamt (l/min)",0,0]
[{"$f":"'14'!BD7","v":0},"Düse01",0,0]
[{"$f":"'14'!BD6","v":0},"Mittelwert",0,0]
[{"$f":"'14'!BD8","v":0},"Wert 1",0,0]
[{"$f":"'14'!BD9","v":0},"Wert 2",0,0]
[{"$f":"'14'!BD10","v":0},"Wert 3",0,0]
[{"$f":"'14'!BD11","v":0},"Wert 4",0,0]
[{"$f":"'14'!BD12","v":0},"Wert 5",0,0]
[{"$f":"'14'!BD13","v":0},"Wert 6",0,0]
[{"$f":"'14'!BD14","v":0},"Wert 7",0,0]
[{"$f":"'14'!BD15","v":0},"Wert 8",0,0]
[{"$f":"'14'!BD16","v":0},"Wert 9",0,0]
[{"$f":"'14'!BD17","v":0},"Wert 10",0,0]
[{"$f":"'14'!BD18","v":0},"Wert 11",0,0]
[{"$f":"'14'!BD19","v":0},"Wert 12",0,0]
[{"$f":"'14'!BD20","v":0},"Wert 13",0,0]
[{"$f":"'14'!BD21","v":0},"Wert 14",0,0]
[{"$f":"'14'!BD22","v":0},"Wert 15",0,0]
[{"$f":"'14'!BD23","v":0},"Wert 16",0,0]
[{"$f":"'14'!BD24","v":0},"Wert 17",0,0]
[{"$f":"'14'!BD25","v":0},"Wert 18",0,0]
[{"$f":"'14'!BD26","v":0},"Wert 19",0,0]
[{"$f":"'14'!BD27","v":0},"Wert 20",0,0]
[{"$f":"'14'!BD28","v":0},"Düse02",0,0]
[{"$f":"'14'!BD29","v":0},"Mittelwert",0,0]
[{"$f":"'14'!BD30","v":0},"Wert 1",0,0]
[{"$f":"'14'!BD31","v":0},"Wert 2",0,0]
[{"$f":"'14'!BD32","v":0},"Wert 3",0,0]
[{"$f":"'14'!BD33","v":0},"Wert 4",0,0]
[{"$f":"'14'!BD34","v":0},"Wert 5",0,0]
[{"$f":"'14'!BD35","v":0},"Wert 6",0,0]
[{"$f":"'14'!BD36","v":0},"Wert 7",0,0]
[{"$f":"'14'!BD37","v":0},"Wert 8",0,0]
[{"$f":"'14'!BD38","v":0},"Wert 9",0,0]
[{"$f":"'14'!BD39","v":0},"Wert 10",0,0]
[{"$f":"'14'!BD40","v":0},"Wert 11",0,0]
[{"$f":"'14'!BD41","v":0},"Wert 12",0,0]
[{"$f":"'14'!BD42","v":0},"Wert 13",0,0]
[{"$f":"'14'!BD43","v":0},"Wert 14",0,0]
[{"$f":"'14'!BD44","v":0},"Wert 15",0,0]
[{"$f":"'14'!BD45","v":0},"Wert 16",0,0]
[{"$f":"'14'!BD46","v":0},"Wert 17",0,0]
[{"$f":"'14'!BD47","v":0},"Wert 18",0,0]
[{"$f":"'14'!BD48","v":0},"Wert 19",0,0]
[{"$f":"'14'!BD49","v":0},"Wert 20",0,0]
[{"$f":"'14'!BD50","v":0},"Düse03",0,0]
[{"$f":"'14'!BD51","v":0},"Mittelwert",0,0]
[{"$f":"'14'!BD52","v":0},"Wert 1",0,0]
[{"$f":"'14'!BD53","v":0},"Wert 2",0,0]
[{"$f":"'14'!BD54","v":0},"Wert 3",0,0]
[{"$f":"'14'!BD55","v":0},"Wert 4",0,0]
[{"$f":"'14'!BD56","v":0},"Wert 5",0,0]
[{"$f":"'14'!BD57","v":0},"Wert 6",0,0]
[{"$f":"'14'!BD58","v":0},"Wert 7",0,0]
[{"$f":"'14'!BD59","v":0},"Wert 8",0,0]
[{"$f":"'14'!BD60","v":0},"Wert 9",0,0]
[{"$f":"'14'!BD61","v":0},"Wert 10",0,0]
[{"$f":"'14'!BD62","v":0},"Wert 11",0,0]
[{"$f":"'14'!BD63","v":0},"Wert 12",0,0]
[{"$f":"'14'!BD64","v":0},"Wert 13",0,0]
[{"$f":"'14'!BD65","v":0},"Wert 14",0,0]
[{"$f":"'14'!BD66","v":0},"Wert 15",0,0]
[{"$f":"'14'!BD67","v":0},"Wert 16",0,0]
[{"$f":"'14'!BD68","v":0},"Wert 17",0,0]
[{"$f":"'14'!BD69","v":0},"Wert 18",0,0]
[{"$f":"'14'!BD70","v":0},"Wert 19",0,0]
[{"$f":"'14'!BD71","v":0},"Wert 20",0,0]
[{"$f":"'14'!BD72","v":0},"Düse04",0,0]
[{"$f":"'14'!BD73","v":0},"Mittelwert",0,0]
[{"$f":"'14'!BD74","v":0},"Wert 1",0,0]
[{"$f":"'14'!BD75","v":0},"Wert 2",0,0]
[{"$f":"'14'!BD76","v":0},"Wert 3",0,0]
[{"$f":"'14'!BD77","v":0},"Wert 4",0,0]
[{"$f":"'14'!BD78","v":0},"Wert 5",0,0]
[{"$f":"'14'!BD79","v":0},"Wert 6",0,0]
[{"$f":"'14'!BD80","v":0},"Wert 7",0,0]
[{"$f":"'14'!BD81","v":0},"Wert 8",0,0]
[{"$f":"'14'!BD82","v":0},"Wert 9",0,0]
[{"$f":"'14'!BD83","v":0},"Wert 10",0,0]
[{"$f":"'14'!BD84","v":0},"Wert 11",0,0]
[{"$f":"'14'!BD85","v":0},"Wert 12",0,0]
[{"$f":"'14'!BD86","v":0},"Wert 13",0,0]
[{"$f":"'14'!BD87","v":0},"Wert 14",0,0]
[{"$f":"'14'!BD88","v":0},"Wert 15",0,0]
[{"$f":"'14'!BD89","v":0},"Wert 16",0,0]
[{"$f":"'14'!BD90","v":0},"Wert 17",0,0]
[{"$f":"'14'!BD91","v":0},"Wert 18",0,0]
[{"$f":"'14'!BD92","v":0},"Wert 19",0,0]
[{"$f":"'14'!BD93","v":0},"Wert 20",0,0]
[null,"Anlage 02"]
[{"$f":"'14'!BE3","v":0},"Druck",0,0]
[{"$f":"'14'!BE4","v":0},"Zeit (s)",0,0]
[{"$f":"'14'!BE5","v":0},"Gesamt (l/min)",0,0]
[{"$f":"'14'!BE7","v":0},"Düse01",0,0]
[{"$f":"'14'!BE6","v":0},"Mittelwert",0,0]
[{"$f":"'14'!BE8","v":0},"Wert 1",0,0]
[{"$f":"'14'!BE9","v":0},"Wert 2",0,0]
[{"$f":"'14'!BE10","v":0},"Wert 3",0,0]
[{"$f":"'14'!BE11","v":0},"Wert 4",0,0]
[{"$f":"'14'!BE12","v":0},"Wert 5",0,0]
[{"$f":"'14'!BE13","v":0},"Wert 6",0,0]
[{"$f":"'14'!BE14","v":0},"Wert 7",0,0]
[{"$f":"'14'!BE15","v":0},"Wert 8",0,0]
[{"$f":"'14'!BE16","v":0},"Wert 9",0,0]
[{"$f":"'14'!BE17","v":0},"Wert 10",0,0]
[{"$f":"'14'!BE18","v":0},"Wert 11",0,0]
[{"$f":"'14'!BE19","v":0},"Wert 12",0,0]
[{"$f":"'14'!BE20","v":0},"Wert 13",0,0]
[{"$f":"'14'!BE21","v":0},"Wert 14",0,0]
[{"$f":"'14'!BE22","v":0},"Wert 15",0,0]
[{"$f":"'14'!BE23","v":0},"Wert 16",0,0]
[{"$f":"'14'!BE24","v":0},"Wert 17",0,0]
[{"$f":"'14'!BE25","v":0},"Wert 18",0,0]
[{"$f":"'14'!BE26","v":0},"Wert 19",0,0]
[{"$f":"'14'!BE27","v":0},"Wert 20",0,0]
[{"$f":"'14'!BE28","v":0},"Düse02",0,0]
[{"$f":"'14'!BE29","v":0},"Mittelwert",0,0]
[{"$f":"'14'!BE30","v":0},"Wert 1",0,0]
[{"$f":"'14'!BE31","v":0},"Wert 2",0,0]
[{"$f":"'14'!BE32","v":0},"Wert 3",0,0]
[{"$f":"'14'!BE33","v":0},"Wert 4",0,0]
[{"$f":"'14'!BE34","v":0},"Wert 5",0,0]
[{"$f":"'14'!BE35","v":0},"Wert 6",0,0]
[{"$f":"'14'!BE36","v":0},"Wert 7",0,0]
[{"$f":"'14'!BE37","v":0},"Wert 8",0,0]
[{"$f":"'14'!BE38","v":0},"Wert 9",0,0]
[{"$f":"'14'!BE39","v":0},"Wert 10",0,0]
[{"$f":"'14'!BE40","v":0},"Wert 11",0,0]
[{"$f":"'14'!BE41","v":0},"Wert 12",0,0]
[{"$f":"'14'!BE42","v":0},"Wert 13",0,0]
[{"$f":"'14'!BE43","v":0},"Wert 14",0,0]
[{"$f":"'14'!BE44","v":0},"Wert 15",0,0]
[{"$f":"'14'!BE45","v":0},"Wert 16",0,0]
[{"$f":"'14'!BE46","v":0},"Wert 17",0,0]
[{"$f":"'14'!BE47","v":0},"Wert 18",0,0]
[{"$f":"'14'!BE48","v":0},"Wert 19",0,0]
[{"$f":"'14'!BE49","v":0},"Wert 20",0,0]
[{"$f":"'14'!BE50","v":0},"Düse03",0,0]
[{"$f":"'14'!BE51","v":0},"Mittelwert",0,0]
[{"$f":"'14'!BE52","v":0},"Wert 1",0,0]
[{"$f":"'14'!BE53","v":0},"Wert 2",0,0]
[{"$f":"'14'!BE54","v":0},"Wert 3",0,0]
[{"$f":"'14'!BE55","v":0},"Wert 4",0,0]
[{"$f":"'14'!BE56","v":0},"Wert 5",0,0]
[{"$f":"'14'!BE57","v":0},"Wert 6",0,0]
[{"$f":"'14'!BE58","v":0},"Wert 7",0,0]
[{"$f":"'14'!BE59","v":0},"Wert 8",0,0]
[{"$f":"'14'!BE60","v":0},"Wert 9",0,0]
[{"$f":"'14'!BE61","v":0},"Wert 10",0,0]
[{"$f":"'14'!BE62","v":0},"Wert 11",0,0]
[{"$f":"'14'!BE63","v":0},"Wert 12",0,0]
[{"$f":"'14'!BE64","v":0},"Wert 13",0,0]
[{"$f":"'14'!BE65","v":0},"Wert 14",0,0]
[{"$f":"'14'!BE66","v":0},"Wert 15",0,0]
[{"$f":"'14'!BE67","v":0},"Wert 16",0,0]
[{"$f":"'14'!BE68","v":0},"Wert 17",0,0]
[{"$f":"'14'!BE69","v":0},"Wert 18",0,0]
[{"$f":"'14'!BE70","v":0},"Wert 19",0,0]
[{"$f":"'14'!BE71","v":0},"Wert 20",0,0]
[{"$f":"'14'!BE72","v":0},"Düse04",0,0]
[{"$f":"'14'!BE73","v":0},"Mittelwert",0,0]
[{"$f":"'14'!BE74","v":0},"Wert 1",0,0]
[{"$f":"'14'!BE75","v":0},"Wert 2",0,0]
[{"$f":"'14'!BE76","v":0},"Wert 3",0,0]
[{"$f":"'14'!BE77","v":0},"Wert 4",0,0]
[{"$f":"'14'!BE78","v":0},"Wert 5",0,0]
[{"$f":"'14'!BE79","v":0},"Wert 6",0,0]
[{"$f":"'14'!BE80","v":0},"Wert 7",0,0]
[{"$f":"'14'!BE81","v":0},"Wert 8",0,0]
[{"$f":"'14'!BE82","v":0},"Wert 9",0,0]
[{"$f":"'14'!BE83","v":0},"Wert 10",0,0]
[{"$f":"'14'!BE84","v":0},"Wert 11",0,0]
[{"$f":"'14'!BE85","v":0},"Wert 12",0,0]
[{"$f":"'14'!BE86","v":0},"Wert 13",0,0]
[{"$f":"'14'!BE87","v":0},"Wert 14",0,0]
[{"$f":"'14'!BE88","v":0},"Wert 15",0,0]
[{"$f":"'14'!BE89","v":0},"Wert 16",0,0]
[{"$f":"'14'!BE90","v":0},"Wert 17",0,0]
[{"$f":"'14'!BE91","v":0},"Wert 18",0,0]
[{"$f":"'14'!BE92","v":0},"Wert 19",0,0]
[{"$f":"'14'!BE93","v":""},"Wert 20",{"$error":"#REF!"},{"$error":"#REF!"}]
[null,"Anlage 03"]
[{"$f":"'14'!BF3","v":0},"Druck",0,0]
[{"$f":"'14'!BF4","v":0},"Zeit (s)",0,0]
[{"$f":"'14'!BF5","v":0},"Gesamt (l/min)",0,0]
[{"$f":"'14'!BF7","v":0},"Düse01",0,0]
[{"$f":"'14'!BF6","v":0},"Mittelwert",0,0]
[{"$f":"'14'!BF8","v":0},"Wert 1",0,0]
[{"$f":"'14'!BF9","v":0},"Wert 2",0,0]
[{"$f":"'14'!BF10","v":0},"Wert 3",0,0]
[{"$f":"'14'!BF11","v":0},"Wert 4",0,0]
[{"$f":"'14'!BF12","v":0},"Wert 5",0,0]
[{"$f":"'14'!BF13","v":0},"Wert 6",0,0]
[{"$f":"'14'!BF14","v":0},"Wert 7",0,0]
[{"$f":"'14'!BF15","v":0},"Wert 8",0,0]
[{"$f":"'14'!BF16","v":0},"Wert 9",0,0]
[{"$f":"'14'!BF17","v":0},"Wert 10",0,0]
[{"$f":"'14'!BF18","v":0},"Wert 11",0,0]
[{"$f":"'14'!BF19","v":0},"Wert 12",0,0]
[{"$f":"'14'!BF20","v":0},"Wert 13",0,0]
[{"$f":"'14'!BF21","v":0},"Wert 14",0,0]
[{"$f":"'14'!BF22","v":0},"Wert 15",0,0]
[{"$f":"'14'!BF23","v":0},"Wert 16",0,0]
[{"$f":"'14'!BF24","v":0},"Wert 17",0,0]
[{"$f":"'14'!BF25","v":0},"Wert 18",0,0]
[{"$f":"'14'!BF26","v":0},"Wert 19",0,0]
[{"$f":"'14'!BF27","v":0},"Wert 20",0,0]
[{"$f":"'14'!BF28","v":0},"Düse02",0,0]
[{"$f":"'14'!BF29","v":0},"Mittelwert",0,0]
[{"$f":"'14'!BF30","v":0},"Wert 1",0,0]
[{"$f":"'14'!BF31","v":0},"Wert 2",0,0]
[{"$f":"'14'!BF32","v":0},"Wert 3",0,0]
[{"$f":"'14'!BF33","v":0},"Wert 4",0,0]
[{"$f":"'14'!BF34","v":0},"Wert 5",0,0]
[{"$f":"'14'!BF35","v":0},"Wert 6",0,0]
[{"$f":"'14'!BF36","v":0},"Wert 7",0,0]
[{"$f":"'14'!BF37","v":0},"Wert 8",0,0]
[{"$f":"'14'!BF38","v":0},"Wert 9",0,0]
[{"$f":"'14'!BF39","v":0},"Wert 10",0,0]
[{"$f":"'14'!BF40","v":0},"Wert 11",0,0]
[{"$f":"'14'!BF41","v":0},"Wert 12",0,0]
[{"$f":"'14'!BF42","v":0},"Wert 13",0,0]
[{"$f":"'14'!BF43","v":0},"Wert 14",0,0]
[{"$f":"'14'!BF44","v":0},"Wert 15",0,0]
[{"$f":"'14'!BF45","v":0},"Wert 16",0,0]
[{"$f":"'14'!BF46","v":0},"Wert 17",0,0]
[{"$f":"'14'!BF47","v":0},"Wert 18",0,0]
[{"$f":"'14'!BF48","v":0},"Wert 19",0,0]
[{"$f":"'14'!BF49","v":0},"Wert 20",0,0]
[{"$f":"'14'!BF50","v":0},"Düse03",0,0]
[{"$f":"'14'!BF51","v":0},"Mittelwert",0,0]
[{"$f":"'14'!BF52","v":0},"Wert 1",0,0]
[{"$f":"'14'!BF53","v":0},"Wert 2",0,0]
[{"$f":"'14'!BF54","v":0},"Wert 3",0,0]
[{"$f":"'14'!BF55","v":0},"Wert 4",0,0]
[{"$f":"'14'!BF56","v":0},"Wert 5",0,0]
[{"$f":"'14'!BF57","v":0},"Wert 6",0,0]
[{"$f":"'14'!BF58","v":0},"Wert 7",0,0]
[{"$f":"'14'!BF59","v":0},"Wert 8",0,0]
[{"$f":"'14'!BF60","v":0},"Wert 9",0,0]
[{"$f":"'14'!BF61","v":0},"Wert 10",0,0]
[{"$f":"'14'!BF62","v":0},"Wert 11",0,0]
[{"$f":"'14'!BF63","v":0},"Wert 12",0,0]
[{"$f":"'14'!BF64","v":0},"Wert 13",0,0]
[{"$f":"'14'!BF65","v":0},"Wert 14",0,0]
[{"$f":"'14'!BF66","v":0},"Wert 15",0,0]
[{"$f":"'14'!BF67","v":0},"Wert 16",0,0]
[{"$f":"'14'!BF68","v":0},"Wert 17",0,0]
[{"$f":"'14'!BF69","v":0},"Wert 18",0,0]
[{"$f":"'14'!BF70","v":0},"Wert 19",0,0]
[{"$f":"'14'!BF71","v":0},"Wert 20",0,0]
[{"$f":"'14'!BF72","v":0},"Düse04",0,0]
[{"$f":"'14'!BF73","v":0},"Mittelwert",0,0]
[{"$f":"'14'!BF74","v":0},"Wert 1",0,0]
[{"$f":"'14'!BF75","v":0},"Wert 2",0,0]
[{"$f":"'14'!BF76","v":0},"Wert 3",0,0]
[{"$f":"'14'!BF77","v":0},"Wert 4",0,0]
[{"$f":"'14'!BF78","v":0},"Wert 5",0,0]
[{"$f":"'14'!BF79","v":0},"Wert 6",0,0]
[{"$f":"'14'!BF80","v":0},"Wert 7",0,0]
[{"$f":"'14'!BF81","v":0},"Wert 8",0,0]
[{"$f":"'14'!BF82","v":0},"Wert 9",0,0]
[{"$f":"'14'!BF83","v":0},"Wert 10",0,0]
[{"$f":"'14'!BF84","v":0},"Wert 11",0,0]
[{"$f":"'14'!BF85","v":0},"Wert 12",0,0]
[{"$f":"'14'!BF86","v":0},"Wert 13",0,0]
[{"$f":"'14'!BF87","v":0},"Wert 14",0,0]
[{"$f":"'14'!BF88","v":0},"Wert 15",0,0]
[{"$f":"'14'!BF89","v":0},"Wert 16",0,0]
[{"$f":"'14'!BF90","v":0},"Wert 17",0,0]
[{"$f":"'14'!BF91","v":0},"Wert 18",0,0]
[{"$f":"'14'!BF92","v":0},"Wert 19",0,0]
[{"$f":"'14'!BF93","v":""},"Wert 20",{"$error":"#REF!"},{"$error":"#REF!"}]

{"sheet":"Düsen","index":5,"n_rows":10,"n_cols":10,"rows_kept":10,"cut":false,"hidden":false,"merged":[]}
[]
[null,null,null,null,null,"Verteilung","Hersteller","Gerätetyp","Antrieb","Verteileinrichtung"]
[]
[null,null,null,null,null,"Einscheiben","Adler","Frontanbau","Elektro","breitflächig"]
[null,null,null,null,null,"Zweischeiben","APV","Heckanbau","Gelenkwelle","Reihenapplikation"]
[null,null,null,null,null,"Pneumatisch","Hema","Aufbaugerät","Bodenantrieb"]
[null,null,null,null,null,null,"Kverneland"]
[null,null,null,null,null,null,"Lehner"]
[null,null,null,null,null,null,"Monosem"]
[null,null,null,null,null,null,"Solo"]